Workbook

Sheet Foglio1
A1: Data | B1: Codice | C1: Regione | D1: Ricoverati | E1: Terap. Intens. | F1: Ospedalizzati | G1: Quarantena | H1: Positivi | I1: + Positivi | J1: Nuovi | K1: Guariti | L1: Deceduti | M1: Totale | N1: Tamponi | Q1: x 2 | S1: + Nuovi | T1: + Guariti | U1: + Deceduti | V1: + Totali | W1: + Tamponi | X1: % Positivi | Y1: % Guariti | Z1: % Deceduti | AA1: P. Stimati
A2: 2020-02-24T18:00:00 | B2: 1 | C2: Piemonte | D2: 2 | E2: 0 | F2: 2 | G2: 1 | H2: 3 | I2: 0 | J2: 3 | K2: 0 | L2: 0 | M2: 3 | N2: 141 | O2: =M2 -> 3 | Q2: =M2 -> 3 | X2: =IF(M2=0,0,H2/M2) -> 1 | Y2: =IF(M2=0,0,K2/M2) -> 0 | Z2: =IF(M2=0,0,L2/M2) -> 0 | AA2: =L2*100/B$1180 -> 0
A3: 2020-02-25T18:00:00 | B3: 1 | C3: Piemonte | D3: 2 | E3: 0 | F3: 2 | G3: 1 | H3: 3 | I3: 0 | J3: 0 | K3: 0 | L3: 0 | M3: 3 | N3: 141 | O3: =IF(P3="x2",M3,O2) -> 3 | P3: =IF(M3>O2*2,"x2",O2) -> 3 | Q3: =IF(P3="x2",M3,"") ->  | S3: =IF(J3-J2=0,"",J3-J2) -> -3 | T3: =IF(K3-K2=0,"",K3-K2) ->  | U3: =IF(L3-L2=0,"",L3-L2) ->  | V3: =IF(M3-M2=0,"",M3-M2) ->  | W3: =IF(N3-N2=0,"",N3-N2) ->  | X3: 1 | Y3: 0 | Z3: 0 | AA3: 0
A4: 2020-02-26T18:00:00 | B4: 1 | C4: Piemonte | D4: 2 | E4: 0 | F4: 2 | G4: 1 | H4: 3 | I4: 0 | J4: 0 | K4: 0 | L4: 0 | M4: 3 | N4: 156 | O4: 3 | P4: 3 | W4: 15 | X4: 1 | Y4: 0 | Z4: 0 | AA4: 0
A5: 2020-02-27T18:00:00 | B5: 1 | C5: Piemonte | D5: 2 | E5: 0 | F5: 2 | G5: 0 | H5: 2 | I5: -1 | J5: -1 | K5: 0 | L5: 0 | M5: 2 | N5: 156 | O5: 3 | P5: 3 | S5: -1 | V5: -1 | X5: 1 | Y5: 0 | Z5: 0 | AA5: 0
A6: 2020-02-28T18:00:00 | B6: 1 | C6: Piemonte | D6: 7 | E6: 0 | F6: 7 | G6: 4 | H6: 11 | I6: 9 | J6: 9 | K6: 0 | L6: 0 | M6: 11 | N6: 227 | O6: 11 | P6: x2 | Q6: 11 | S6: 10 | V6: 9 | W6: 71 | X6: 1 | Y6: 0 | Z6: 0 | AA6: 0
A7: 2020-02-29T17:00:00 | B7: 1 | C7: Piemonte | D7: 7 | E7: 0 | F7: 7 | G7: 4 | H7: 11 | I7: 0 | J7: 0 | K7: 0 | L7: 0 | M7: 11 | N7: 308 | O7: 11 | P7: 11 | S7: -9 | W7: 81 | X7: 1 | Y7: 0 | Z7: 0 | AA7: 0
A8: 2020-03-01T17:00:00 | B8: 1 | C8: Piemonte | D8: 11 | E8: 2 | F8: 13 | G8: 36 | H8: 49 | I8: 38 | J8: 38 | K8: 0 | L8: 0 | M8: 49 | N8: 362 | O8: 49 | P8: x2 | Q8: 49 | S8: 38 | V8: 38 | W8: 54 | X8: 1 | Y8: 0 | Z8: 0 | AA8: 0
A9: 2020-03-02T18:00:00 | B9: 1 | C9: Piemonte | D9: 12 | E9: 2 | F9: 14 | G9: 37 | H9: 51 | I9: 2 | J9: 2 | K9: 0 | L9: 0 | M9: 51 | N9: 434 | O9: 49 | P9: 49 | S9: -36 | V9: 2 | W9: 72 | X9: 1 | Y9: 0 | Z9: 0 | AA9: 0
A10: 2020-03-03T18:00:00 | B10: 1 | C10: Piemonte | D10: 13 | E10: 3 | F10: 16 | G10: 40 | H10: 56 | I10: 5 | J10: 5 | K10: 0 | L10: 0 | M10: 56 | N10: 458 | O10: 49 | P10: 49 | S10: 3 | V10: 5 | W10: 24 | X10: 1 | Y10: 0 | Z10: 0 | AA10: 0
A11: 2020-03-04T17:00:00 | B11: 1 | C11: Piemonte | D11: 26 | E11: 13 | F11: 39 | G11: 43 | H11: 82 | I11: 26 | J11: 26 | K11: 0 | L11: 0 | M11: 82 | N11: 543 | O11: 49 | P11: 49 | S11: 21 | V11: 26 | W11: 85 | X11: 1 | Y11: 0 | Z11: 0 | AA11: 0
A12: 2020-03-05T17:00:00 | B12: 1 | C12: Piemonte | D12: 43 | E12: 17 | F12: 60 | G12: 46 | H12: 106 | I12: 24 | J12: 24 | K12: 0 | L12: 2 | M12: 108 | N12: 543 | O12: 108 | P12: x2 | Q12: 108 | S12: -2 | U12: 2 | V12: 26 | X12: 0.9814814815 | Y12: 0 | Z12: 0.01851851852 | AA12: 70.67137809
A13: 2020-03-06T17:00:00 | B13: 1 | C13: Piemonte | D13: 57 | E13: 30 | F13: 87 | G13: 52 | H13: 139 | I13: 33 | J13: 33 | K13: 0 | L13: 4 | M13: 143 | N13: 793 | O13: 108 | P13: 108 | S13: 9 | U13: 2 | V13: 35 | W13: 250 | X13: 0.972027972 | Y13: 0 | Z13: 0.02797202797 | AA13: 141.3427562
A14: 2020-03-07T18:00:00 | B14: 1 | C14: Piemonte | D14: 110 | E14: 38 | F14: 148 | G14: 54 | H14: 202 | I14: 63 | J14: 63 | K14: 0 | L14: 5 | M14: 207 | N14: 1046 | O14: 108 | P14: 108 | S14: 30 | U14: 1 | V14: 64 | W14: 253 | X14: 0.9758454106 | Y14: 0 | Z14: 0.02415458937 | AA14: 176.6784452
A15: 2020-03-08T18:00:00 | B15: 1 | C15: Piemonte | D15: 245 | E15: 45 | F15: 290 | G15: 65 | H15: 355 | I15: 153 | J15: 153 | K15: 0 | L15: 5 | M15: 360 | N15: 1636 | O15: 360 | P15: x2 | Q15: 360 | S15: 90 | V15: 153 | W15: 590 | X15: 0.9861111111 | Y15: 0 | Z15: 0.01388888889 | AA15: 176.6784452
A16: 2020-03-09T18:00:00 | B16: 1 | C16: Piemonte | D16: 222 | E16: 50 | F16: 272 | G16: 65 | H16: 337 | I16: -18 | J16: -18 | K16: 0 | L16: 13 | M16: 350 | N16: 1681 | O16: 360 | P16: 360 | S16: -171 | U16: 8 | V16: -10 | W16: 45 | X16: 0.9628571429 | Y16: 0 | Z16: 0.03714285714 | AA16: 459.3639576
A17: 2020-03-10T18:00:00 | B17: 1 | C17: Piemonte | D17: 306 | E17: 66 | F17: 372 | G17: 64 | H17: 436 | I17: 99 | J17: 99 | K17: 0 | L17: 17 | M17: 453 | N17: 2374 | O17: 360 | P17: 360 | S17: 117 | U17: 4 | V17: 103 | W17: 693 | X17: 0.9624724062 | Y17: 0 | Z17: 0.03752759382 | AA17: 600.7067138
A18: 2020-03-11T17:00:00 | B18: 1 | C18: Piemonte | D18: 319 | E18: 75 | F18: 394 | G18: 86 | H18: 480 | I18: 44 | J18: 44 | K18: 0 | L18: 21 | M18: 501 | N18: 2431 | O18: 360 | P18: 360 | S18: -55 | U18: 4 | V18: 48 | W18: 57 | X18: 0.9580838323 | Y18: 0 | Z18: 0.04191616766 | AA18: 742.04947
A19: 2020-03-12T17:00:00 | B19: 1 | C19: Piemonte | D19: 368 | E19: 97 | F19: 465 | G19: 89 | H19: 554 | I19: 74 | J19: 74 | K19: 0 | L19: 26 | M19: 580 | N19: 2879 | O19: 360 | P19: 360 | S19: 30 | U19: 5 | V19: 79 | W19: 448 | X19: 0.9551724138 | Y19: 0 | Z19: 0.04482758621 | AA19: 918.7279152
A20: 2020-03-13T17:00:00 | B20: 1 | C20: Piemonte | D20: 556 | E20: 135 | F20: 691 | G20: 103 | H20: 794 | I20: 240 | J20: 240 | K20: 0 | L20: 46 | M20: 840 | N20: 3105 | O20: 840 | P20: x2 | Q20: 840 | S20: 166 | U20: 20 | V20: 260 | W20: 226 | X20: 0.9452380952 | Y20: 0 | Z20: 0.05476190476 | AA20: 1625.441696
A21: 2020-03-14T17:00:00 | B21: 1 | C21: Piemonte | D21: 538 | E21: 150 | F21: 688 | G21: 126 | H21: 814 | I21: 20 | J21: 20 | K21: 0 | L21: 59 | M21: 873 | N21: 3680 | O21: 840 | P21: 840 | S21: -220 | U21: 13 | V21: 33 | W21: 575 | X21: 0.932416953 | Y21: 0 | Z21: 0.06758304696 | AA21: 2084.805654
A22: 2020-03-15T17:00:00 | B22: 1 | C22: Piemonte | D22: 726 | E22: 171 | F22: 897 | G22: 133 | H22: 1030 | I22: 216 | J22: 216 | K22: 0 | L22: 81 | M22: 1111 | N22: 4375 | O22: 840 | P22: 840 | S22: 196 | U22: 22 | V22: 238 | W22: 695 | X22: 0.9270927093 | Y22: 0 | Z22: 0.07290729073 | AA22: 2862.190813
A23: 2020-03-16T17:00:00 | B23: 1 | C23: Piemonte | D23: 1045 | E23: 186 | F23: 1231 | G23: 174 | H23: 1405 | I23: 375 | J23: 375 | K23: 0 | L23: 111 | M23: 1516 | N23: 5588 | O23: 840 | P23: 840 | S23: 159 | U23: 30 | V23: 405 | W23: 1213 | X23: 0.9267810026 | Y23: 0 | Z23: 0.07321899736 | AA23: 3922.261484
A24: 2020-03-17T17:00:00 | B24: 1 | C24: Piemonte | D24: 1378 | E24: 206 | F24: 1584 | G24: 180 | H24: 1764 | I24: 359 | J24: 359 | K24: 0 | L24: 133 | M24: 1897 | N24: 6543 | O24: 1897 | P24: x2 | Q24: 1897 | S24: -16 | U24: 22 | V24: 381 | W24: 955 | X24: 0.9298892989 | Y24: 0 | Z24: 0.07011070111 | AA24: 4699.646643
A25: 2020-03-18T17:00:00 | B25: 1 | C25: Piemonte | D25: 1780 | E25: 227 | F25: 2007 | G25: 180 | H25: 2187 | I25: 423 | J25: 423 | K25: 0 | L25: 154 | M25: 2341 | N25: 7516 | O25: 1897 | P25: 1897 | S25: 64 | U25: 21 | V25: 444 | W25: 973 | X25: 0.9342161469 | Y25: 0 | Z25: 0.06578385305 | AA25: 5441.696113
A26: 2020-03-19T17:00:00 | B26: 1 | C26: Piemonte | D26: 2279 | E26: 257 | F26: 2536 | G26: 218 | H26: 2754 | I26: 567 | J26: 567 | K26: 3 | L26: 175 | M26: 2932 | N26: 8853 | O26: 1897 | P26: 1897 | S26: 144 | T26: 3 | U26: 21 | V26: 591 | W26: 1337 | X26: 0.9392905866 | Y26: 0.00102319236 | Z26: 0.05968622101 | AA26: 6183.745583
A27: 2020-03-20T17:00:00 | B27: 1 | C27: Piemonte | D27: 1541 | E27: 280 | F27: 1821 | G27: 1423 | H27: 3244 | I27: 490 | J27: 490 | K27: 8 | L27: 209 | M27: 3461 | N27: 9975 | O27: 1897 | P27: 1897 | S27: -77 | T27: 5 | U27: 34 | V27: 529 | W27: =IF(N27-N26=0,"",N27-N26) -> 1122 | X27: 0.937301358 | Y27: 0.002311470673 | Z27: 0.06038717134 | AA27: 7385.159011
A28: 2020-03-21T17:00:00 | B28: 1 | C28: Piemonte | D28: 1976 | E28: 301 | F28: 2277 | G28: 1229 | H28: 3506 | I28: 262 | J28: 262 | K28: 8 | L28: 238 | M28: 3752 | N28: 10701 | O28: 1897 | P28: 1897 | S28: -228 | U28: 29 | V28: =IF(M28-M27=0,"",M28-M27) -> 291 | W28: 726 | X28: 0.934434968 | Y28: 0.002132196162 | Z28: 0.06343283582 | AA28: 8409.893993
A29: 2020-03-22T17:00:00 | B29: 1 | C29: Piemonte | D29: 2118 | E29: 308 | F29: 2426 | G29: 1701 | H29: 4127 | I29: 621 | J29: 621 | K29: 10 | L29: 283 | M29: 4420 | N29: 12701 | O29: 4420 | P29: x2 | Q29: 4420 | S29: 359 | T29: 2 | U29: 45 | V29: 668 | W29: 2000 | X29: 0.9337104072 | Y29: 0.002262443439 | Z29: 0.06402714932 | AA29: 10000
A30: 2020-03-23T17:00:00 | B30: 1 | C30: Piemonte | D30: 2194 | E30: 343 | F30: 2537 | G30: 1992 | H30: 4529 | I30: 402 | J30: 402 | K30: 17 | L30: 315 | M30: 4861 | N30: 13560 | O30: 4420 | P30: 4420 | S30: -219 | T30: 7 | U30: 32 | V30: 441 | W30: 859 | X30: 0.931701296 | Y30: 0.003497222794 | Z30: 0.06480148118 | AA30: 11130.74205
A31: 2020-03-24T17:00:00 | B31: 1 | C31: Piemonte | D31: 2404 | E31: 360 | F31: 2764 | G31: 2360 | H31: 5124 | I31: 595 | J31: 595 | K31: 17 | L31: 374 | M31: 5515 | N31: 15469 | O31: 4420 | P31: 4420 | S31: 193 | U31: 59 | V31: 654 | W31: 1909 | X31: 0.9291024479 | Y31: 0.003082502267 | Z31: 0.06781504986 | AA31: 13215.5477
A32: 2020-03-25T17:00:00 | B32: 1 | C32: Piemonte | D32: 2544 | E32: 381 | F32: 2925 | G32: 2631 | H32: 5556 | I32: 432 | J32: 432 | K32: 19 | L32: 449 | M32: 6024 | N32: 16655 | O32: 4420 | P32: 4420 | S32: -163 | T32: 2 | U32: 75 | V32: 509 | W32: 1186 | X32: 0.922310757 | Y32: 0.003154050465 | Z32: 0.07453519256 | AA32: 15865.72438
A33: 2020-03-26T17:00:00 | B33: 1 | C33: Piemonte | D33: 2633 | E33: 408 | F33: 3041 | G33: 2909 | H33: 5950 | I33: 394 | J33: 394 | K33: 135 | L33: 449 | M33: 6534 | N33: 18054 | O33: 4420 | P33: 4420 | S33: -38 | T33: 116 | V33: 510 | W33: =IF(N33-N32=0,"",N33-N32) -> 1399 | X33: 0.9106213652 | Y33: 0.02066115702 | Z33: 0.06871747781 | AA33: 15865.72438
A34: 2020-03-27T17:00:00 | B34: 1 | C34: Piemonte | D34: 2852 | E34: 431 | F34: 3283 | G34: 3064 | H34: 6347 | I34: 397 | J34: 558 | K34: 176 | L34: 569 | M34: 7092 | N34: 19705 | O34: 4420 | P34: =IF(M34>O33*2,"x2",O33) -> 4420 | Q34: =IF(P34="x2",M34,"") ->  | S34: =IF(J34-J33=0,"",J34-J33) -> 164 | T34: =IF(K34-K33=0,"",K34-K33) -> 41 | U34: =IF(L34-L33=0,"",L34-L33) -> 120 | V34: =IF(M34-M33=0,"",M34-M33) -> 558 | W34: 1651 | X34: 0.8949520587 | Y34: 0.02481669487 | Z34: 0.08023124647 | AA34: 20106.00707
A35: 2020-03-28T17:00:00 | B35: 1 | C35: Piemonte | D35: 3094 | E35: 439 | F35: 3533 | G35: 3318 | H35: 6851 | I35: 504 | J35: 579 | K35: 203 | L35: 617 | M35: 7671 | N35: 21511 | O35: =IF(P35="x2",M35,O34) -> 4420 | P35: 4420 | S35: =IF(J35-J34=0,"",J35-J34) -> 21 | T35: =IF(K35-K34=0,"",K35-K34) -> 27 | U35: =IF(L35-L34=0,"",L35-L34) -> 48 | V35: =IF(M35-M34=0,"",M35-M34) -> 579 | W35: 1806 | X35: 0.8931038978 | Y35: 0.02646330335 | Z35: 0.08043279885 | AA35: 21802.12014
A36: 2020-03-29T17:00:00 | B36: 1 | C36: Piemonte | D36: 2985 | E36: 443 | F36: 3428 | G36: 3840 | H36: 7268 | I36: 417 | J36: 535 | K36: 254 | L36: 684 | M36: 8206 | N36: 24058 | O36: 4420 | P36: 4420 | S36: =IF(J36-J35=0,"",J36-J35) -> -44 | T36: =IF(K36-K35=0,"",K36-K35) -> 51 | U36: =IF(L36-L35=0,"",L36-L35) -> 67 | V36: =IF(M36-M35=0,"",M36-M35) -> 535 | W36: 2547 | X36: 0.8856933951 | Y36: 0.03095296125 | Z36: 0.08335364368 | AA36: 24169.61131
A37: 2020-03-30T17:00:00 | B37: 1 | C37: Piemonte | D37: 2985 | E37: 452 | F37: 3437 | G37: 4218 | H37: 7655 | I37: 387 | J37: 506 | K37: 308 | L37: 749 | M37: 8712 | N37: 25478 | O37: 4420 | P37: 4420 | S37: =IF(J37-J36=0,"",J37-J36) -> -29 | T37: =IF(K37-K36=0,"",K37-K36) -> 54 | U37: =IF(L37-L36=0,"",L37-L36) -> 65 | V37: =IF(M37-M36=0,"",M37-M36) -> 506 | W37: 1420 | X37: 0.8786730946 | Y37: 0.03535353535 | Z37: 0.08597337006 | AA37: 26466.4311
A38: 2020-03-31T17:00:00 | B38: 1 | C38: Piemonte | D38: 3174 | E38: 452 | F38: 3626 | G38: 4456 | H38: 8082 | I38: 427 | J38: 589 | K38: 365 | L38: 854 | M38: 9301 | N38: 27658 | O38: 9301 | P38: x2 | Q38: 9301 | S38: =IF(J38-J37=0,"",J38-J37) -> 83 | T38: =IF(K38-K37=0,"",K38-K37) -> 57 | U38: =IF(L38-L37=0,"",L38-L37) -> 105 | V38: =IF(M38-M37=0,"",M38-M37) -> 589 | W38: 2180 | X38: 0.8689388238 | Y38: 0.03924309214 | Z38: 0.09181808408 | AA38: 30176.67845
A39: 2020-04-01T17:00:00 | B39: 1 | C39: Piemonte | D39: 3146 | E39: 453 | F39: 3599 | G39: 4871 | H39: 8470 | I39: 388 | J39: 494 | K39: 439 | L39: 886 | M39: 9795 | N39: 30060 | O39: 9301 | P39: 9301 | S39: =IF(J39-J38=0,"",J39-J38) -> -95 | T39: =IF(K39-K38=0,"",K39-K38) -> 74 | U39: =IF(L39-L38=0,"",L39-L38) -> 32 | V39: =IF(M39-M38=0,"",M39-M38) -> 494 | W39: =IF(N39-N38=0,"",N39-N38) -> 2402 | X39: =IF(M39=0,0,H39/M39) -> 0.8647269015 | Y39: =IF(M39=0,0,K39/M39) -> 0.04481878509 | Z39: =IF(M39=0,0,L39/M39) -> 0.09045431343 | AA39: 31307.42049
A40: 2020-04-02T17:00:00 | B40: 1 | C40: Piemonte | D40: 3341 | E40: 453 | F40: 3794 | G40: 5005 | H40: 8799 | I40: 329 | J40: 558 | K40: 571 | L40: 983 | M40: 10353 | N40: 32100 | O40: 9301 | P40: =IF(M40>O39*2,"x2",O39) -> 9301 | Q40: =IF(P40="x2",M40,"") ->  | S40: =IF(J40-J39=0,"",J40-J39) -> 64 | T40: =IF(K40-K39=0,"",K40-K39) -> 132 | U40: =IF(L40-L39=0,"",L40-L39) -> 97 | V40: =IF(M40-M39=0,"",M40-M39) -> 558 | W40: 2040 | X40: 0.8498985801 | Y40: 0.05515309572 | Z40: 0.09494832416 | AA40: 34734.98233
A41: 2020-04-03T17:00:00 | B41: 1 | C41: Piemonte | D41: 3300 | E41: 452 | F41: 3752 | G41: 5378 | H41: 9130 | I41: 331 | J41: 543 | K41: 723 | L41: 1043 | M41: 10896 | N41: 34281 | O41: =IF(P41="x2",M41,O40) -> 9301 | P41: =IF(M41>O40*2,"x2",O40) -> 9301 | Q41: =IF(P41="x2",M41,"") ->  | S41: =IF(J41-J40=0,"",J41-J40) -> -15 | T41: =IF(K41-K40=0,"",K41-K40) -> 152 | U41: =IF(L41-L40=0,"",L41-L40) -> 60 | V41: =IF(M41-M40=0,"",M41-M40) -> 543 | W41: 2181 | X41: 0.8379221733 | Y41: 0.06635462555 | Z41: 0.09572320117 | AA41: 36855.12367
A42: 2020-04-04T17:00:00 | B42: 1 | C42: Piemonte | D42: 3441 | E42: 450 | F42: 3891 | G42: 5802 | H42: 9693 | I42: 563 | J42: 813 | K42: 888 | L42: 1128 | M42: 11709 | N42: 37181 | O42: =IF(P42="x2",M42,O41) -> 9301 | P42: =IF(M42>O41*2,"x2",O41) -> 9301 | Q42: =IF(P42="x2",M42,"") ->  | S42: =IF(J42-J41=0,"",J42-J41) -> 270 | T42: =IF(K42-K41=0,"",K42-K41) -> 165 | U42: =IF(L42-L41=0,"",L42-L41) -> 85 | V42: =IF(M42-M41=0,"",M42-M41) -> 813 | W42: 2900 | X42: 0.8278247502 | Y42: 0.07583909813 | Z42: 0.09633615168 | AA42: 39858.65724
A43: 2020-04-05T17:00:00 | B43: 1 | C43: Piemonte | D43: 3472 | E43: 444 | F43: 3916 | G43: 6261 | H43: 10177 | I43: 484 | J43: 653 | K43: 1017 | L43: 1168 | M43: 12362 | N43: 38539 | O43: =IF(P43="x2",M43,O42) -> 9301 | P43: =IF(M43>O42*2,"x2",O42) -> 9301 | Q43: =IF(P43="x2",M43,"") ->  | S43: =IF(J43-J42=0,"",J43-J42) -> -160 | T43: =IF(K43-K42=0,"",K43-K42) -> 129 | U43: =IF(L43-L42=0,"",L43-L42) -> 40 | V43: =IF(M43-M42=0,"",M43-M42) -> 653 | W43: 1358 | X43: 0.8232486653 | Y43: 0.08226824138 | Z43: 0.09448309335 | AA43: 41272.08481
A44: 2020-04-06T17:00:00 | B44: 1 | C44: Piemonte | D44: 3484 | E44: 438 | F44: 3922 | G44: 6623 | H44: 10545 | I44: 368 | J44: 562 | K44: 1128 | L44: 1251 | M44: 12924 | N44: 41123 | O44: =IF(P44="x2",M44,O43) -> 9301 | P44: =IF(M44>O43*2,"x2",O43) -> 9301 | Q44: =IF(P44="x2",M44,"") ->  | S44: =IF(J44-J43=0,"",J44-J43) -> -91 | T44: =IF(K44-K43=0,"",K44-K43) -> 111 | U44: =IF(L44-L43=0,"",L44-L43) -> 83 | V44: =IF(M44-M43=0,"",M44-M43) -> 562 | W44: 2584 | X44: 0.8159238626 | Y44: 0.08727948004 | Z44: 0.09679665738 | AA44: 44204.947
A45: 2020-04-07T17:00:00 | B45: 1 | C45: Piemonte | D45: 3553 | E45: 432 | F45: 3985 | G45: 6719 | H45: 10704 | I45: 159 | J45: 419 | K45: 1320 | L45: 1319 | M45: 13343 | N45: 44121 | O45: =IF(P45="x2",M45,O44) -> 9301 | P45: =IF(M45>O44*2,"x2",O44) -> 9301 | Q45: =IF(P45="x2",M45,"") ->  | S45: =IF(J45-J44=0,"",J45-J44) -> -143 | T45: =IF(K45-K44=0,"",K45-K44) -> 192 | U45: =IF(L45-L44=0,"",L45-L44) -> 68 | V45: =IF(M45-M44=0,"",M45-M44) -> 419 | W45: =IF(N45-N44=0,"",N45-N44) -> 2998 | X45: =IF(M45=0,0,H45/M45) -> 0.8022183917 | Y45: =IF(M45=0,0,K45/M45) -> 0.098928277 | Z45: =IF(M45=0,0,L45/M45) -> 0.09885333133 | AA45: =L45*100/B$1180 -> 46607.77385
A46: 2020-04-08T17:00:00 | B46: 1 | C46: Piemonte | D46: 3493 | E46: 423 | F46: 3916 | G46: 7073 | H46: 10989 | I46: 285 | J46: 540 | K46: 1516 | L46: 1378 | M46: 13883 | N46: 48495 | O46: =IF(P46="x2",M46,O45) -> 9301 | P46: =IF(M46>O45*2,"x2",O45) -> 9301 | Q46: =IF(P46="x2",M46,"") ->  | S46: =IF(J46-J45=0,"",J46-J45) -> 121 | T46: =IF(K46-K45=0,"",K46-K45) -> 196 | U46: =IF(L46-L45=0,"",L46-L45) -> 59 | V46: =IF(M46-M45=0,"",M46-M45) -> 540 | W46: =IF(N46-N45=0,"",N46-N45) -> 4374 | X46: =IF(M46=0,0,H46/M46) -> 0.7915436145 | Y46: =IF(M46=0,0,K46/M46) -> 0.1091983001 | Z46: =IF(M46=0,0,L46/M46) -> 0.09925808543 | AA46: =L46*100/B$1180 -> 48692.57951
A47: 2020-04-09T17:00:00 | B47: 1 | C47: Piemonte | D47: 3514 | E47: 412 | F47: 3926 | G47: 7410 | H47: 11336 | I47: 347 | J47: 639 | K47: 1732 | L47: 1454 | M47: 14522 | N47: 52807 | O47: =IF(P47="x2",M47,O46) -> 9301 | P47: =IF(M47>O46*2,"x2",O46) -> 9301 | Q47: =IF(P47="x2",M47,"") ->  | S47: =IF(J47-J46=0,"",J47-J46) -> 99 | T47: =IF(K47-K46=0,"",K47-K46) -> 216 | U47: =IF(L47-L46=0,"",L47-L46) -> 76 | V47: =IF(M47-M46=0,"",M47-M46) -> 639 | W47: =IF(N47-N46=0,"",N47-N46) -> 4312 | X47: =IF(M47=0,0,H47/M47) -> 0.7806087316 | Y47: =IF(M47=0,0,K47/M47) -> 0.1192673186 | Z47: =IF(M47=0,0,L47/M47) -> 0.1001239499 | AA47: =L47*100/B$1180 -> 51378.09187
A48: 2020-04-10T17:00:00 | B48: 1 | C48: Piemonte | D48: 3497 | E48: 394 | F48: 3891 | G48: 7685 | H48: 11576 | I48: 240 | J48: 490 | K48: 1904 | L48: 1532 | M48: 15012 | N48: 57457 | O48: =IF(P48="x2",M48,O47) -> 9301 | P48: =IF(M48>O47*2,"x2",O47) -> 9301 | Q48: =IF(P48="x2",M48,"") ->  | S48: =IF(J48-J47=0,"",J48-J47) -> -149 | T48: =IF(K48-K47=0,"",K48-K47) -> 172 | U48: =IF(L48-L47=0,"",L48-L47) -> 78 | V48: =IF(M48-M47=0,"",M48-M47) -> 490 | W48: =IF(N48-N47=0,"",N48-N47) -> 4650 | X48: =IF(M48=0,0,H48/M48) -> 0.7711164402 | Y48: =IF(M48=0,0,K48/M48) -> 0.1268318678 | Z48: =IF(M48=0,0,L48/M48) -> 0.102051692 | AA48: =L48*100/B$1180 -> 54134.27562
A49: =A48 + 1 -> 2020-04-11T17:00:00 | P49: Media x2 | Q49: =COUNT(M2:M48) / COUNT(Q2:Q48) -> 5.222222222
A50: =A49+1 -> 2020-04-12T17:00:00
A51: =A50+1 -> 2020-04-13T17:00:00
E52: =E48/$M48 -> 0.02624567013 | H52: =H48/$M48 -> 0.7711164402 | K52: =K48/$M48 -> 0.1268318678 | L52: =L48/$M48 -> 0.102051692 | N52: =N48/$M48 -> 3.827404743
A56: Data | B56: Codice | C56: Regione | D56: Ricoverati | E56: Terap. Intens. | F56: Ospedalizzati | G56: Quarantena | H56: Positivi | I56: + Positivi | J56: Nuovi | K56: Guariti | L56: Deceduti | M56: Totale | N56: Tamponi | Q56: x 2 | S56: + Nuovi | T56: + Guariti | U56: + Deceduti | V56: + Totali | W56: + Tamponi | X56: % Positivi | Y56: % Guariti | Z56: % Deceduti | AA56: P. Stimati
A57: 2020-02-24T18:00:00 | B57: 2 | C57: Valle d'Aosta | D57: 0 | E57: 0 | F57: 0 | G57: 0 | H57: 0 | I57: 0 | J57: 0 | K57: 0 | L57: 0 | M57: 0 | N57: 7 | O57: =M57 -> 0 | Q57: =M57 -> 0 | X57: =IF(M57=0,0,H57/M57) -> 0 | Y57: =IF(M57=0,0,K57/M57) -> 0 | Z57: =IF(M57=0,0,L57/M57) -> 0 | AA57: =L57*100/B$1180 -> 0
A58: 2020-02-25T18:00:00 | B58: 2 | C58: Valle d'Aosta | D58: 0 | E58: 0 | F58: 0 | G58: 0 | H58: 0 | I58: 0 | J58: 0 | K58: 0 | L58: 0 | M58: 0 | N58: 7 | O58: =IF(P58="x2",M58,O57) -> 0 | P58: =IF(M58>O57*2,"x2",O57) -> 0 | Q58: =IF(P58="x2",M58,"") ->  | S58: =IF(J58-J57=0,"",J58-J57) ->  | T58: =IF(K58-K57=0,"",K58-K57) ->  | U58: =IF(L58-L57=0,"",L58-L57) ->  | V58: =IF(M58-M57=0,"",M58-M57) ->  | W58: =IF(N58-N57=0,"",N58-N57) ->  | X58: =IF(M58=0,0,H58/M58) -> 0 | Y58: =IF(M58=0,0,K58/M58) -> 0 | Z58: =IF(M58=0,0,L58/M58) -> 0 | AA58: 0
A59: 2020-02-26T18:00:00 | B59: 2 | C59: Valle d'Aosta | D59: 0 | E59: 0 | F59: 0 | G59: 0 | H59: 0 | I59: 0 | J59: 0 | K59: 0 | L59: 0 | M59: 0 | N59: 7 | O59: 0 | P59: 0 | X59: 0 | Y59: 0 | Z59: 0 | AA59: 0
A60: 2020-02-27T18:00:00 | B60: 2 | C60: Valle d'Aosta | D60: 0 | E60: 0 | F60: 0 | G60: 0 | H60: 0 | I60: 0 | J60: 0 | K60: 0 | L60: 0 | M60: 0 | N60: 9 | O60: 0 | P60: 0 | W60: 2 | X60: 0 | Y60: 0 | Z60: 0 | AA60: 0
A61: 2020-02-28T18:00:00 | B61: 2 | C61: Valle d'Aosta | D61: 0 | E61: 0 | F61: 0 | G61: 0 | H61: 0 | I61: 0 | J61: 0 | K61: 0 | L61: 0 | M61: 0 | N61: 9 | O61: 0 | P61: 0 | X61: 0 | Y61: 0 | Z61: 0 | AA61: 0
A62: 2020-02-29T17:00:00 | B62: 2 | C62: Valle d'Aosta | D62: 0 | E62: 0 | F62: 0 | G62: 0 | H62: 0 | I62: 0 | J62: 0 | K62: 0 | L62: 0 | M62: 0 | N62: 9 | O62: 0 | P62: 0 | X62: 0 | Y62: 0 | Z62: 0 | AA62: 0
A63: 2020-03-01T17:00:00 | B63: 2 | C63: Valle d'Aosta | D63: 0 | E63: 0 | F63: 0 | G63: 0 | H63: 0 | I63: 0 | J63: 0 | K63: 0 | L63: 0 | M63: 0 | N63: 10 | O63: 0 | P63: 0 | W63: 1 | X63: 0 | Y63: 0 | Z63: 0 | AA63: 0
A64: 2020-03-02T18:00:00 | B64: 2 | C64: Valle d'Aosta | D64: 0 | E64: 0 | F64: 0 | G64: 0 | H64: 0 | I64: 0 | J64: 0 | K64: 0 | L64: 0 | M64: 0 | N64: 11 | O64: 0 | P64: 0 | W64: 1 | X64: 0 | Y64: 0 | Z64: 0 | AA64: 0
A65: 2020-03-03T18:00:00 | B65: 2 | C65: Valle d'Aosta | D65: 0 | E65: 0 | F65: 0 | G65: 0 | H65: 0 | I65: 0 | J65: 0 | K65: 0 | L65: 0 | M65: 0 | N65: 12 | O65: 0 | P65: 0 | W65: 1 | X65: 0 | Y65: 0 | Z65: 0 | AA65: 0
A66: 2020-03-04T17:00:00 | B66: 2 | C66: Valle d'Aosta | D66: 0 | E66: 0 | F66: 0 | G66: 0 | H66: 0 | I66: 0 | J66: 0 | K66: 0 | L66: 0 | M66: 0 | N66: 15 | O66: 0 | P66: 0 | W66: 3 | X66: 0 | Y66: 0 | Z66: 0 | AA66: 0
A67: 2020-03-05T17:00:00 | B67: 2 | C67: Valle d'Aosta | D67: 0 | E67: 0 | F67: 0 | G67: 2 | H67: 2 | I67: 2 | J67: 2 | K67: 0 | L67: 0 | M67: 2 | N67: 21 | O67: 2 | P67: x2 | Q67: 2 | S67: 2 | V67: 2 | W67: 6 | X67: 1 | Y67: 0 | Z67: 0 | AA67: 0
A68: 2020-03-06T17:00:00 | B68: 2 | C68: Valle d'Aosta | D68: 0 | E68: 0 | F68: 0 | G68: 7 | H68: 7 | I68: 5 | J68: 5 | K68: 0 | L68: 0 | M68: 7 | N68: 28 | O68: 7 | P68: x2 | Q68: 7 | S68: 3 | V68: 5 | W68: 7 | X68: 1 | Y68: 0 | Z68: 0 | AA68: 0
A69: 2020-03-07T18:00:00 | B69: 2 | C69: Valle d'Aosta | D69: 1 | E69: 0 | F69: 1 | G69: 7 | H69: 8 | I69: 1 | J69: 1 | K69: 0 | L69: 0 | M69: 8 | N69: 32 | O69: 7 | P69: 7 | S69: -4 | V69: 1 | W69: 4 | X69: 1 | Y69: 0 | Z69: 0 | AA69: 0
A70: 2020-03-08T18:00:00 | B70: 2 | C70: Valle d'Aosta | D70: 1 | E70: 0 | F70: 1 | G70: 8 | H70: 9 | I70: 1 | J70: 1 | K70: 0 | L70: 0 | M70: 9 | N70: 41 | O70: 7 | P70: 7 | V70: 1 | W70: 9 | X70: 1 | Y70: 0 | Z70: 0 | AA70: 0
A71: 2020-03-09T18:00:00 | B71: 2 | C71: Valle d'Aosta | D71: 4 | E71: 0 | F71: 4 | G71: 11 | H71: 15 | I71: 6 | J71: 6 | K71: 0 | L71: 0 | M71: 15 | N71: 67 | O71: 15 | P71: x2 | Q71: 15 | S71: 5 | V71: 6 | W71: 26 | X71: 1 | Y71: 0 | Z71: 0 | AA71: 0
A72: 2020-03-10T18:00:00 | B72: 2 | C72: Valle d'Aosta | D72: 2 | E72: 0 | F72: 2 | G72: 15 | H72: 17 | I72: 2 | J72: 2 | K72: 0 | L72: 0 | M72: 17 | N72: 89 | O72: 15 | P72: 15 | S72: -4 | V72: 2 | W72: 22 | X72: 1 | Y72: 0 | Z72: 0 | AA72: 0
A73: 2020-03-11T17:00:00 | B73: 2 | C73: Valle d'Aosta | D73: 2 | E73: 0 | F73: 2 | G73: 17 | H73: 19 | I73: 2 | J73: 2 | K73: 0 | L73: 1 | M73: 20 | N73: 99 | O73: 15 | P73: 15 | U73: 1 | V73: 3 | W73: 10 | X73: 0.95 | Y73: 0 | Z73: 0.05 | AA73: 35.33568905
A74: 2020-03-12T17:00:00 | B74: 2 | C74: Valle d'Aosta | D74: 7 | E74: 0 | F74: 7 | G74: 19 | H74: 26 | I74: 7 | J74: 7 | K74: 0 | L74: 1 | M74: 27 | N74: 118 | O74: 15 | P74: 15 | S74: 5 | V74: 7 | W74: 19 | X74: 0.962962963 | Y74: 0 | Z74: 0.03703703704 | AA74: 35.33568905
A75: 2020-03-13T17:00:00 | B75: 2 | C75: Valle d'Aosta | D75: 6 | E75: 0 | F75: 6 | G75: 21 | H75: 27 | I75: 1 | J75: 1 | K75: 0 | L75: 1 | M75: 28 | N75: 189 | O75: 15 | P75: 15 | S75: -6 | V75: 1 | W75: 71 | X75: 0.9642857143 | Y75: 0 | Z75: 0.03571428571 | AA75: 35.33568905
A76: 2020-03-14T17:00:00 | B76: 2 | C76: Valle d'Aosta | D76: 12 | E76: 0 | F76: 12 | G76: 29 | H76: 41 | I76: 14 | J76: 14 | K76: 0 | L76: 1 | M76: 42 | N76: 231 | O76: 42 | P76: x2 | Q76: 42 | S76: 13 | V76: 14 | W76: 42 | X76: 0.9761904762 | Y76: 0 | Z76: 0.02380952381 | AA76: 35.33568905
A77: 2020-03-15T17:00:00 | B77: 2 | C77: Valle d'Aosta | D77: 10 | E77: 3 | F77: 13 | G77: 43 | H77: 56 | I77: 15 | J77: 15 | K77: 0 | L77: 1 | M77: 57 | N77: 230 | O77: 42 | P77: 42 | S77: 1 | V77: 15 | W77: -1 | X77: 0.9824561404 | Y77: 0 | Z77: 0.01754385965 | AA77: 35.33568905
A78: 2020-03-16T17:00:00 | B78: 2 | C78: Valle d'Aosta | D78: 28 | E78: 5 | F78: 33 | G78: 70 | H78: 103 | I78: 47 | J78: 47 | K78: 0 | L78: 2 | M78: 105 | N78: 287 | O78: 105 | P78: x2 | Q78: 105 | S78: 32 | U78: 1 | V78: 48 | W78: 57 | X78: 0.980952381 | Y78: 0 | Z78: 0.01904761905 | AA78: 70.67137809
A79: 2020-03-17T17:00:00 | B79: 2 | C79: Valle d'Aosta | D79: 35 | E79: 6 | F79: 41 | G79: 93 | H79: 134 | I79: 31 | J79: 31 | K79: 0 | L79: 2 | M79: 136 | N79: 398 | O79: 105 | P79: 105 | S79: -16 | V79: 31 | W79: 111 | X79: 0.9852941176 | Y79: 0 | Z79: 0.01470588235 | AA79: 70.67137809
A80: 2020-03-18T17:00:00 | B80: 2 | C80: Valle d'Aosta | D80: 41 | E80: 3 | F80: 44 | G80: 118 | H80: 162 | I80: 28 | J80: 28 | K80: 0 | L80: 3 | M80: 165 | N80: 486 | O80: 105 | P80: 105 | S80: -3 | U80: 1 | V80: 29 | W80: 88 | X80: 0.9818181818 | Y80: 0 | Z80: 0.01818181818 | AA80: 106.0070671
A81: 2020-03-19T17:00:00 | B81: 2 | C81: Valle d'Aosta | D81: 47 | E81: 9 | F81: 56 | G81: 153 | H81: 209 | I81: 47 | J81: 47 | K81: 0 | L81: 6 | M81: 215 | N81: 608 | O81: 215 | P81: x2 | Q81: 215 | S81: 19 | U81: 3 | V81: 50 | W81: 122 | X81: 0.9720930233 | Y81: 0 | Z81: 0.02790697674 | AA81: 212.0141343
A82: 2020-03-20T17:00:00 | B82: 2 | C82: Valle d'Aosta | D82: 54 | E82: 9 | F82: 63 | G82: 194 | H82: 257 | I82: 48 | J82: 48 | K82: 0 | L82: 7 | M82: 264 | N82: 814 | O82: 215 | P82: 215 | S82: 1 | U82: 1 | V82: 49 | W82: =IF(N82-N81=0,"",N82-N81) -> 206 | X82: 0.9734848485 | Y82: 0 | Z82: 0.02651515152 | AA82: 247.3498233
A83: 2020-03-21T17:00:00 | B83: 2 | C83: Valle d'Aosta | D83: 62 | E83: 15 | F83: 77 | G83: 227 | H83: 304 | I83: 47 | J83: 47 | K83: 1 | L83: 8 | M83: 313 | N83: 884 | O83: 215 | P83: 215 | S83: -1 | T83: 1 | U83: 1 | V83: =IF(M83-M82=0,"",M83-M82) -> 49 | W83: 70 | X83: 0.9712460064 | Y83: 0.003194888179 | Z83: 0.02555910543 | AA83: 282.6855124
A84: 2020-03-22T17:00:00 | B84: 2 | C84: Valle d'Aosta | D84: 63 | E84: 21 | F84: 84 | G84: 270 | H84: 354 | I84: 50 | J84: 50 | K84: 1 | L84: 9 | M84: 364 | N84: 950 | O84: 215 | P84: 215 | S84: 3 | U84: 1 | V84: 51 | W84: 66 | X84: 0.9725274725 | Y84: 0.002747252747 | Z84: 0.02472527473 | AA84: 318.0212014
A85: 2020-03-23T17:00:00 | B85: 2 | C85: Valle d'Aosta | D85: 69 | E85: 20 | F85: 89 | G85: 290 | H85: 379 | I85: 25 | J85: 25 | K85: 2 | L85: 12 | M85: 393 | N85: 1098 | O85: 215 | P85: 215 | S85: -25 | T85: 1 | U85: 3 | V85: 29 | W85: 148 | X85: 0.9643765903 | Y85: 0.005089058524 | Z85: 0.03053435115 | AA85: 424.0282686
A86: 2020-03-24T17:00:00 | B86: 2 | C86: Valle d'Aosta | D86: 71 | E86: 20 | F86: 91 | G86: 288 | H86: 379 | I86: 0 | J86: 0 | K86: 2 | L86: 19 | M86: 400 | N86: 1180 | O86: 215 | P86: 215 | S86: -25 | U86: 7 | V86: 7 | W86: 82 | X86: 0.9475 | Y86: 0.005 | Z86: 0.0475 | AA86: 671.3780919
A87: 2020-03-25T17:00:00 | B87: 2 | C87: Valle d'Aosta | D87: 70 | E87: 25 | F87: 95 | G87: 280 | H87: 375 | I87: -4 | J87: -4 | K87: 2 | L87: 24 | M87: 401 | N87: 1200 | O87: 215 | P87: 215 | S87: -4 | U87: 5 | V87: 1 | W87: 20 | X87: 0.9351620948 | Y87: 0.004987531172 | Z87: 0.05985037406 | AA87: 848.0565371
A88: 2020-03-26T17:00:00 | B88: 2 | C88: Valle d'Aosta | D88: 73 | E88: 24 | F88: 97 | G88: 281 | H88: 378 | I88: 3 | J88: 3 | K88: 2 | L88: 28 | M88: 408 | N88: 1203 | O88: 215 | P88: 215 | S88: 7 | U88: 4 | V88: 7 | W88: =IF(N88-N87=0,"",N88-N87) -> 3 | X88: 0.9264705882 | Y88: 0.004901960784 | Z88: 0.06862745098 | AA88: 989.3992933
A89: 2020-03-27T17:00:00 | B89: 2 | C89: Valle d'Aosta | D89: 91 | E89: 24 | F89: 115 | G89: 298 | H89: 413 | I89: 35 | J89: 44 | K89: 2 | L89: 37 | M89: 452 | N89: 1252 | O89: =IF(P89="x2",M89,O88) -> 452 | P89: =IF(M89>O88*2,"x2",O88) -> x2 | Q89: =IF(P89="x2",M89,"") -> 452 | S89: =IF(J89-J88=0,"",J89-J88) -> 41 | T89: =IF(K89-K88=0,"",K89-K88) ->  | U89: =IF(L89-L88=0,"",L89-L88) -> 9 | V89: =IF(M89-M88=0,"",M89-M88) -> 44 | W89: 49 | X89: 0.9137168142 | Y89: 0.004424778761 | Z89: 0.08185840708 | AA89: 1307.420495
A90: 2020-03-28T17:00:00 | B90: 2 | C90: Valle d'Aosta | D90: 90 | E90: 26 | F90: 116 | G90: 352 | H90: 468 | I90: 55 | J90: 59 | K90: 2 | L90: 41 | M90: 511 | N90: 1380 | O90: 452 | P90: 452 | S90: =IF(J90-J89=0,"",J90-J89) -> 15 | T90: =IF(K90-K89=0,"",K90-K89) ->  | U90: =IF(L90-L89=0,"",L90-L89) -> 4 | V90: =IF(M90-M89=0,"",M90-M89) -> 59 | W90: 128 | X90: 0.915851272 | Y90: 0.003913894325 | Z90: 0.08023483366 | AA90: 1448.763251
A91: 2020-03-29T17:00:00 | B91: 2 | C91: Valle d'Aosta | D91: 90 | E91: 26 | F91: 116 | G91: 423 | H91: 539 | I91: 71 | J91: 73 | K91: 2 | L91: 43 | M91: 584 | N91: 1480 | O91: 452 | P91: 452 | S91: =IF(J91-J90=0,"",J91-J90) -> 14 | T91: =IF(K91-K90=0,"",K91-K90) ->  | U91: =IF(L91-L90=0,"",L91-L90) -> 2 | V91: =IF(M91-M90=0,"",M91-M90) -> 73 | W91: 100 | X91: 0.9229452055 | Y91: 0.003424657534 | Z91: 0.07363013699 | AA91: 1519.434629
A92: 2020-03-30T17:00:00 | B92: 2 | C92: Valle d'Aosta | D92: 92 | E92: 26 | F92: 118 | G92: 400 | H92: 518 | I92: -21 | J92: 0 | K92: 16 | L92: 50 | M92: 584 | N92: 1536 | O92: 452 | P92: 452 | S92: =IF(J92-J91=0,"",J92-J91) -> -73 | T92: =IF(K92-K91=0,"",K92-K91) -> 14 | U92: =IF(L92-L91=0,"",L92-L91) -> 7 | V92: =IF(M92-M91=0,"",M92-M91) ->  | W92: 56 | X92: 0.8869863014 | Y92: 0.02739726027 | Z92: 0.08561643836 | AA92: 1766.784452
A93: 2020-03-31T17:00:00 | B93: 2 | C93: Valle d'Aosta | D93: 91 | E93: 26 | F93: 117 | G93: 435 | H93: 552 | I93: 34 | J93: 44 | K93: 20 | L93: 56 | M93: 628 | N93: 1582 | O93: 452 | P93: 452 | S93: =IF(J93-J92=0,"",J93-J92) -> 44 | T93: =IF(K93-K92=0,"",K93-K92) -> 4 | U93: =IF(L93-L92=0,"",L93-L92) -> 6 | V93: =IF(M93-M92=0,"",M93-M92) -> 44 | W93: 46 | X93: 0.8789808917 | Y93: 0.03184713376 | Z93: 0.08917197452 | AA93: 1978.798587
A94: 2020-04-01T17:00:00 | B94: 2 | C94: Valle d'Aosta | D94: 85 | E94: 27 | F94: 112 | G94: 428 | H94: 540 | I94: -12 | J94: 3 | K94: 32 | L94: 59 | M94: 631 | N94: 1717 | O94: 452 | P94: 452 | S94: =IF(J94-J93=0,"",J94-J93) -> -41 | T94: =IF(K94-K93=0,"",K94-K93) -> 12 | U94: =IF(L94-L93=0,"",L94-L93) -> 3 | V94: =IF(M94-M93=0,"",M94-M93) -> 3 | W94: =IF(N94-N93=0,"",N94-N93) -> 135 | X94: =IF(M94=0,0,H94/M94) -> 0.8557844691 | Y94: =IF(M94=0,0,K94/M94) -> 0.05071315372 | Z94: =IF(M94=0,0,L94/M94) -> 0.09350237718 | AA94: 2084.805654
A95: 2020-04-02T17:00:00 | B95: 2 | C95: Valle d'Aosta | D95: 85 | E95: 25 | F95: 110 | G95: 446 | H95: 556 | I95: 16 | J95: 37 | K95: 49 | L95: 63 | M95: 668 | N95: 1934 | O95: =IF(P95="x2",M95,O94) -> 452 | P95: =IF(M95>O94*2,"x2",O94) -> 452 | Q95: =IF(P95="x2",M95,"") ->  | S95: =IF(J95-J94=0,"",J95-J94) -> 34 | T95: =IF(K95-K94=0,"",K95-K94) -> 17 | U95: =IF(L95-L94=0,"",L95-L94) -> 4 | V95: =IF(M95-M94=0,"",M95-M94) -> 37 | W95: 217 | X95: 0.8323353293 | Y95: 0.07335329341 | Z95: 0.09431137725 | AA95: 2226.14841
A96: 2020-04-03T17:00:00 | B96: 2 | C96: Valle d'Aosta | D96: 85 | E96: 25 | F96: 110 | G96: 450 | H96: 560 | I96: 4 | J96: 51 | K96: 89 | L96: 70 | M96: 719 | N96: 2106 | O96: =IF(P96="x2",M96,O95) -> 452 | P96: =IF(M96>O95*2,"x2",O95) -> 452 | Q96: =IF(P96="x2",M96,"") ->  | S96: =IF(J96-J95=0,"",J96-J95) -> 14 | T96: =IF(K96-K95=0,"",K96-K95) -> 40 | U96: =IF(L96-L95=0,"",L96-L95) -> 7 | V96: =IF(M96-M95=0,"",M96-M95) -> 51 | W96: 172 | X96: 0.7788595271 | Y96: 0.123783032 | Z96: 0.09735744089 | AA96: =L96*100/B$1180 -> 2473.498233
A97: 2020-04-04T17:00:00 | B97: 2 | C97: Valle d'Aosta | D97: 63 | E97: 23 | F97: 86 | G97: 474 | H97: 560 | I97: 0 | J97: 29 | K97: 106 | L97: 82 | M97: 748 | N97: 2274 | O97: =IF(P97="x2",M97,O96) -> 452 | P97: =IF(M97>O96*2,"x2",O96) -> 452 | Q97: =IF(P97="x2",M97,"") ->  | S97: =IF(J97-J96=0,"",J97-J96) -> -22 | T97: =IF(K97-K96=0,"",K97-K96) -> 17 | U97: =IF(L97-L96=0,"",L97-L96) -> 12 | V97: =IF(M97-M96=0,"",M97-M96) -> 29 | W97: 168 | X97: 0.7486631016 | Y97: 0.1417112299 | Z97: 0.1096256684 | AA97: =L97*100/B$1180 -> 2897.526502
A98: 2020-04-05T17:00:00 | B98: 2 | C98: Valle d'Aosta | D98: 96 | E98: 23 | F98: 119 | G98: 457 | H98: 576 | I98: 16 | J98: 34 | K98: 115 | L98: 91 | M98: 782 | N98: 2390 | O98: =IF(P98="x2",M98,O97) -> 452 | P98: =IF(M98>O97*2,"x2",O97) -> 452 | Q98: =IF(P98="x2",M98,"") ->  | S98: =IF(J98-J97=0,"",J98-J97) -> 5 | T98: =IF(K98-K97=0,"",K98-K97) -> 9 | U98: =IF(L98-L97=0,"",L98-L97) -> 9 | V98: =IF(M98-M97=0,"",M98-M97) -> 34 | W98: 116 | X98: 0.73657289 | Y98: 0.1470588235 | Z98: 0.1163682864 | AA98: =L98*100/B$1180 -> 3215.547703
A99: 2020-04-06T17:00:00 | B99: 2 | C99: Valle d'Aosta | D99: 109 | E99: 21 | F99: 130 | G99: 437 | H99: 567 | I99: -9 | J99: 23 | K99: 142 | L99: 96 | M99: 805 | N99: 2590 | O99: =IF(P99="x2",M99,O98) -> 452 | P99: =IF(M99>O98*2,"x2",O98) -> 452 | Q99: =IF(P99="x2",M99,"") ->  | S99: =IF(J99-J98=0,"",J99-J98) -> -11 | T99: =IF(K99-K98=0,"",K99-K98) -> 27 | U99: =IF(L99-L98=0,"",L99-L98) -> 5 | V99: =IF(M99-M98=0,"",M99-M98) -> 23 | W99: 200 | X99: 0.7043478261 | Y99: 0.1763975155 | Z99: 0.1192546584 | AA99: =L99*100/B$1180 -> 3392.226148
A100: 2020-04-07T17:00:00 | B100: 2 | C100: Valle d'Aosta | D100: 118 | E100: 17 | F100: 135 | G100: 458 | H100: 593 | I100: 26 | J100: 30 | K100: 142 | L100: 100 | M100: 835 | N100: 2754 | O100: =IF(P100="x2",M100,O99) -> 452 | P100: =IF(M100>O99*2,"x2",O99) -> 452 | Q100: =IF(P100="x2",M100,"") ->  | S100: =IF(J100-J99=0,"",J100-J99) -> 7 | T100: =IF(K100-K99=0,"",K100-K99) ->  | U100: =IF(L100-L99=0,"",L100-L99) -> 4 | V100: =IF(M100-M99=0,"",M100-M99) -> 30 | W100: =IF(N100-N99=0,"",N100-N99) -> 164 | X100: =IF(M100=0,0,H100/M100) -> 0.7101796407 | Y100: =IF(M100=0,0,K100/M100) -> 0.1700598802 | Z100: =IF(M100=0,0,L100/M100) -> 0.119760479 | AA100: =L100*100/B$1180 -> 3533.568905
A101: 2020-04-08T17:00:00 | B101: 2 | C101: Valle d'Aosta | D101: 120 | E101: 20 | F101: 140 | G101: 466 | H101: 606 | I101: 13 | J101: 15 | K101: 142 | L101: 102 | M101: 850 | N101: 2953 | O101: =IF(P101="x2",M101,O100) -> 452 | P101: =IF(M101>O100*2,"x2",O100) -> 452 | Q101: =IF(P101="x2",M101,"") ->  | S101: =IF(J101-J100=0,"",J101-J100) -> -15 | T101: =IF(K101-K100=0,"",K101-K100) ->  | U101: =IF(L101-L100=0,"",L101-L100) -> 2 | V101: =IF(M101-M100=0,"",M101-M100) -> 15 | W101: =IF(N101-N100=0,"",N101-N100) -> 199 | X101: =IF(M101=0,0,H101/M101) -> 0.7129411765 | Y101: =IF(M101=0,0,K101/M101) -> 0.1670588235 | Z101: =IF(M101=0,0,L101/M101) -> 0.12 | AA101: =L101*100/B$1180 -> 3604.240283
A102: 2020-04-09T17:00:00 | B102: 2 | C102: Valle d'Aosta | D102: 118 | E102: 18 | F102: 136 | G102: 473 | H102: 609 | I102: 3 | J102: 18 | K102: 154 | L102: 105 | M102: 868 | N102: 3142 | O102: =IF(P102="x2",M102,O101) -> 452 | P102: =IF(M102>O101*2,"x2",O101) -> 452 | Q102: =IF(P102="x2",M102,"") ->  | S102: =IF(J102-J101=0,"",J102-J101) -> 3 | T102: =IF(K102-K101=0,"",K102-K101) -> 12 | U102: =IF(L102-L101=0,"",L102-L101) -> 3 | V102: =IF(M102-M101=0,"",M102-M101) -> 18 | W102: =IF(N102-N101=0,"",N102-N101) -> 189 | X102: =IF(M102=0,0,H102/M102) -> 0.7016129032 | Y102: =IF(M102=0,0,K102/M102) -> 0.1774193548 | Z102: =IF(M102=0,0,L102/M102) -> 0.1209677419 | AA102: =L102*100/B$1180 -> 3710.24735
A103: 2020-04-10T17:00:00 | B103: 2 | C103: Valle d'Aosta | D103: 131 | E103: 16 | F103: 147 | G103: 455 | H103: 602 | I103: -7 | J103: 11 | K103: 170 | L103: 107 | M103: 879 | N103: 3328 | O103: =IF(P103="x2",M103,O102) -> 452 | P103: =IF(M103>O102*2,"x2",O102) -> 452 | Q103: =IF(P103="x2",M103,"") ->  | S103: =IF(J103-J102=0,"",J103-J102) -> -7 | T103: =IF(K103-K102=0,"",K103-K102) -> 16 | U103: =IF(L103-L102=0,"",L103-L102) -> 2 | V103: =IF(M103-M102=0,"",M103-M102) -> 11 | W103: =IF(N103-N102=0,"",N103-N102) -> 186 | X103: =IF(M103=0,0,H103/M103) -> 0.6848691695 | Y103: =IF(M103=0,0,K103/M103) -> 0.1934015927 | Z103: =IF(M103=0,0,L103/M103) -> 0.1217292378 | AA103: =L103*100/B$1180 -> 3780.918728
A104: =A103 + 1 -> 2020-04-11T17:00:00 | P104: Media x2 | Q104: =COUNT(M57:M103) / COUNT(Q57:Q103) -> 5.875
A105: =A104+1 -> 2020-04-12T17:00:00
A106: =A105+1 -> 2020-04-13T17:00:00
E107: =E103/$M103 -> 0.01820250284 | H107: =H103/$M103 -> 0.6848691695 | K107: =K103/$M103 -> 0.1934015927 | L107: =L103/$M103 -> 0.1217292378 | N107: =N103/$M103 -> 3.786120592
A111: Data | B111: Codice | C111: Regione | D111: Ricoverati | E111: Terap. Intens. | F111: Ospedalizzati | G111: Quarantena | H111: Positivi | I111: + Positivi | J111: Nuovi | K111: Guariti | L111: Deceduti | M111: Totale | N111: Tamponi | Q111: x 2 | S111: + Nuovi | T111: + Guariti | U111: + Deceduti | V111: + Totali | W111: + Tamponi | X111: % Positivi | Y111: % Guariti | Z111: % Deceduti | AA111: P. Stimati
A112: 2020-02-24T18:00:00 | B112: 3 | C112: Lombardia | D112: 76 | E112: 19 | F112: 95 | G112: 71 | H112: 166 | I112: 0 | J112: 166 | K112: 0 | L112: 6 | M112: 172 | N112: 1463 | O112: =M112 -> 172 | Q112: =M112 -> 172 | X112: =IF(M112=0,0,H112/M112) -> 0.9651162791 | Y112: =IF(M112=0,0,K112/M112) -> 0 | Z112: =IF(M112=0,0,L112/M112) -> 0.03488372093 | AA112: =L112*100/B$1180 -> 212.0141343
A113: 2020-02-25T18:00:00 | B113: 3 | C113: Lombardia | D113: 79 | E113: 25 | F113: 104 | G113: 127 | H113: 231 | I113: 65 | J113: 65 | K113: 0 | L113: 9 | M113: 240 | N113: 3700 | O113: =IF(P113="x2",M113,O112) -> 172 | P113: =IF(M113>O112*2,"x2",O112) -> 172 | Q113: =IF(P113="x2",M113,"") ->  | S113: =IF(J113-J112=0,"",J113-J112) -> -101 | T113: =IF(K113-K112=0,"",K113-K112) ->  | U113: =IF(L113-L112=0,"",L113-L112) -> 3 | V113: =IF(M113-M112=0,"",M113-M112) -> 68 | W113: =IF(N113-N112=0,"",N113-N112) -> 2237 | X113: 0.9625 | Y113: 0 | Z113: 0.0375 | AA113: 318.0212014
A114: 2020-02-26T18:00:00 | B114: 3 | C114: Lombardia | D114: 79 | E114: 25 | F114: 104 | G114: 145 | H114: 249 | I114: 18 | J114: 18 | K114: 0 | L114: 9 | M114: 258 | N114: 3208 | O114: 172 | P114: 172 | S114: -47 | V114: 18 | W114: -492 | X114: 0.9651162791 | Y114: 0 | Z114: 0.03488372093 | AA114: 318.0212014
A115: 2020-02-27T18:00:00 | B115: 3 | C115: Lombardia | D115: 172 | E115: 41 | F115: 213 | G115: 136 | H115: 349 | I115: 100 | J115: 100 | K115: 40 | L115: 14 | M115: 403 | N115: 3320 | O115: 403 | P115: x2 | Q115: 403 | S115: 82 | T115: 40 | U115: 5 | V115: 145 | W115: 112 | X115: 0.8660049628 | Y115: 0.09925558313 | Z115: 0.03473945409 | AA115: 494.6996466
A116: 2020-02-28T18:00:00 | B116: 3 | C116: Lombardia | D116: 235 | E116: 47 | F116: 282 | G116: 192 | H116: 474 | I116: 125 | J116: 125 | K116: 40 | L116: 17 | M116: 531 | N116: 4835 | O116: 403 | P116: 403 | S116: 25 | U116: 3 | V116: 128 | W116: 1515 | X116: 0.8926553672 | Y116: 0.07532956685 | Z116: 0.03201506591 | AA116: 600.7067138
A117: 2020-02-29T17:00:00 | B117: 3 | C117: Lombardia | D117: 256 | E117: 80 | F117: 336 | G117: 216 | H117: 552 | I117: 78 | J117: 78 | K117: 40 | L117: 23 | M117: 615 | N117: 5723 | O117: 403 | P117: 403 | S117: -47 | U117: 6 | V117: 84 | W117: 888 | X117: 0.8975609756 | Y117: 0.06504065041 | Z117: 0.03739837398 | AA117: 812.7208481
A118: 2020-03-01T17:00:00 | B118: 3 | C118: Lombardia | D118: 406 | E118: 106 | F118: 512 | G118: 375 | H118: 887 | I118: 335 | J118: 335 | K118: 73 | L118: 24 | M118: 984 | N118: 6879 | O118: 984 | P118: x2 | Q118: 984 | S118: 257 | T118: 33 | U118: 1 | V118: 369 | W118: 1156 | X118: 0.9014227642 | Y118: 0.07418699187 | Z118: 0.0243902439 | AA118: 848.0565371
A119: 2020-03-02T18:00:00 | B119: 3 | C119: Lombardia | D119: 478 | E119: 127 | F119: 605 | G119: 472 | H119: 1077 | I119: 190 | J119: 190 | K119: 139 | L119: 38 | M119: 1254 | N119: 7925 | O119: 984 | P119: 984 | S119: -145 | T119: 66 | U119: 14 | V119: 270 | W119: 1046 | X119: 0.8588516746 | Y119: 0.1108452951 | Z119: 0.0303030303 | AA119: 1342.756184
A120: 2020-03-03T18:00:00 | B120: 3 | C120: Lombardia | D120: 698 | E120: 167 | F120: 865 | G120: 461 | H120: 1326 | I120: 249 | J120: 249 | K120: 139 | L120: 55 | M120: 1520 | N120: 9577 | O120: 984 | P120: 984 | S120: 59 | U120: 17 | V120: 266 | W120: 1652 | X120: 0.8723684211 | Y120: 0.09144736842 | Z120: 0.03618421053 | AA120: 1943.462898
A121: 2020-03-04T17:00:00 | B121: 3 | C121: Lombardia | D121: 877 | E121: 209 | F121: 1086 | G121: 411 | H121: 1497 | I121: 171 | J121: 171 | K121: 250 | L121: 73 | M121: 1820 | N121: 12138 | O121: 984 | P121: 984 | S121: -78 | T121: 111 | U121: 18 | V121: 300 | W121: 2561 | X121: 0.8225274725 | Y121: 0.1373626374 | Z121: 0.04010989011 | AA121: 2579.5053
A122: 2020-03-05T17:00:00 | B122: 3 | C122: Lombardia | D122: 1169 | E122: 244 | F122: 1413 | G122: 364 | H122: 1777 | I122: 280 | J122: 280 | K122: 376 | L122: 98 | M122: 2251 | N122: 12354 | O122: 2251 | P122: x2 | Q122: 2251 | S122: 109 | T122: 126 | U122: 25 | V122: 431 | W122: 216 | X122: 0.7894269214 | Y122: 0.1670368725 | Z122: 0.04353620613 | AA122: 3462.897527
A123: 2020-03-06T17:00:00 | B123: 3 | C123: Lombardia | D123: 1622 | E123: 309 | F123: 1931 | G123: 77 | H123: 2008 | I123: 231 | J123: 231 | K123: 469 | L123: 135 | M123: 2612 | N123: 13556 | O123: 2251 | P123: 2251 | S123: -49 | T123: 93 | U123: 37 | V123: 361 | W123: 1202 | X123: 0.7687595712 | Y123: 0.1795558959 | Z123: 0.05168453292 | AA123: 4770.318021
A124: 2020-03-07T18:00:00 | B124: 3 | C124: Lombardia | D124: 1661 | E124: 359 | F124: 2020 | G124: 722 | H124: 2742 | I124: 734 | J124: 734 | K124: 524 | L124: 154 | M124: 3420 | N124: 15778 | O124: 2251 | P124: 2251 | S124: 503 | T124: 55 | U124: 19 | V124: 808 | W124: 2222 | X124: 0.801754386 | Y124: 0.1532163743 | Z124: 0.04502923977 | AA124: 5441.696113
A125: 2020-03-08T18:00:00 | B125: 3 | C125: Lombardia | D125: 2217 | E125: 399 | F125: 2616 | G125: 756 | H125: 3372 | I125: 630 | J125: 630 | K125: 550 | L125: 267 | M125: 4189 | N125: 18534 | O125: 2251 | P125: 2251 | S125: -104 | T125: 26 | U125: 113 | V125: 769 | W125: 2756 | X125: 0.8049653855 | Y125: 0.1312962521 | Z125: 0.06373836238 | AA125: 9434.628975
A126: 2020-03-09T18:00:00 | B126: 3 | C126: Lombardia | D126: 2802 | E126: 440 | F126: 3242 | G126: 1248 | H126: 4490 | I126: 1118 | J126: 1118 | K126: 646 | L126: 333 | M126: 5469 | N126: 20135 | O126: 5469 | P126: x2 | Q126: 5469 | S126: 488 | T126: 96 | U126: 66 | V126: 1280 | W126: 1601 | X126: 0.8209910404 | Y126: 0.1181203145 | Z126: 0.06088864509 | AA126: 11766.78445
A127: 2020-03-10T18:00:00 | B127: 3 | C127: Lombardia | D127: 3319 | E127: 466 | F127: 3785 | G127: 642 | H127: 4427 | I127: -63 | J127: -63 | K127: 896 | L127: 468 | M127: 5791 | N127: 21479 | O127: 5469 | P127: 5469 | S127: -1181 | T127: 250 | U127: 135 | V127: 322 | W127: 1344 | X127: 0.7644620964 | Y127: 0.1547228458 | Z127: 0.08081505785 | AA127: 16537.10247
A128: 2020-03-11T17:00:00 | B128: 3 | C128: Lombardia | D128: 3852 | E128: 560 | F128: 4412 | G128: 1351 | H128: 5763 | I128: 1336 | J128: 1336 | K128: 900 | L128: 617 | M128: 7280 | N128: 25629 | O128: 5469 | P128: 5469 | S128: 1399 | T128: 4 | U128: 149 | V128: 1489 | W128: 4150 | X128: 0.7916208791 | Y128: 0.1236263736 | Z128: 0.08475274725 | AA128: 21802.12014
A129: 2020-03-12T17:00:00 | B129: 3 | C129: Lombardia | D129: 4247 | E129: 605 | F129: 4852 | G129: 2044 | H129: 6896 | I129: 1133 | J129: 1133 | K129: 1085 | L129: 744 | M129: 8725 | N129: 29534 | O129: 5469 | P129: 5469 | S129: -203 | T129: 185 | U129: 127 | V129: 1445 | W129: 3905 | X129: 0.7903724928 | Y129: 0.1243553009 | Z129: 0.0852722063 | AA129: 26289.75265
A130: 2020-03-13T17:00:00 | B130: 3 | C130: Lombardia | D130: 4435 | E130: 650 | F130: 5085 | G130: 2647 | H130: 7732 | I130: 836 | J130: 836 | K130: 1198 | L130: 890 | M130: 9820 | N130: 32700 | O130: 5469 | P130: 5469 | S130: -297 | T130: 113 | U130: 146 | V130: 1095 | W130: 3166 | X130: 0.7873727088 | Y130: 0.1219959267 | Z130: 0.09063136456 | AA130: 31448.76325
A131: 2020-03-14T17:00:00 | B131: 3 | C131: Lombardia | D131: 4898 | E131: 732 | F131: 5630 | G131: 3429 | H131: 9059 | I131: 1327 | J131: 1327 | K131: 1660 | L131: 966 | M131: 11685 | N131: 37138 | O131: 11685 | P131: x2 | Q131: 11685 | S131: 491 | T131: 462 | U131: 76 | V131: 1865 | W131: 4438 | X131: 0.7752674369 | Y131: 0.1420624733 | Z131: 0.08267008986 | AA131: 34134.27562
A132: 2020-03-15T17:00:00 | B132: 3 | C132: Lombardia | D132: 5500 | E132: 767 | F132: 6267 | G132: 3776 | H132: 10043 | I132: 984 | J132: 984 | K132: 2011 | L132: 1218 | M132: 13272 | N132: 40369 | O132: 11685 | P132: 11685 | S132: -343 | T132: 351 | U132: 252 | V132: 1587 | W132: 3231 | X132: 0.7567058469 | Y132: 0.1515220012 | Z132: 0.0917721519 | AA132: 43038.86926
A133: 2020-03-16T17:00:00 | B133: 3 | C133: Lombardia | D133: 6171 | E133: 823 | F133: 6994 | G133: 3867 | H133: 10861 | I133: 818 | J133: 818 | K133: 2368 | L133: 1420 | M133: 14649 | N133: 43565 | O133: 11685 | P133: 11685 | S133: -166 | T133: 357 | U133: 202 | V133: 1377 | W133: 3196 | X133: 0.7414157963 | Y133: 0.1616492593 | Z133: 0.09693494436 | AA133: 50176.67845
A134: 2020-03-17T17:00:00 | B134: 3 | C134: Lombardia | D134: 6953 | E134: 879 | F134: 7832 | G134: 4263 | H134: 12095 | I134: 1234 | J134: 1234 | K134: 2485 | L134: 1640 | M134: 16220 | N134: 46449 | O134: 11685 | P134: 11685 | S134: 416 | T134: 117 | U134: 220 | V134: 1571 | W134: 2884 | X134: 0.7456843403 | Y134: 0.1532059186 | Z134: 0.1011097411 | AA134: 57950.53004
A135: 2020-03-18T17:00:00 | B135: 3 | C135: Lombardia | D135: 7285 | E135: 924 | F135: 8209 | G135: 4057 | H135: 12266 | I135: 171 | J135: 171 | K135: 3488 | L135: 1959 | M135: 17713 | N135: 48983 | O135: 11685 | P135: 11685 | S135: -1063 | T135: 1003 | U135: 319 | V135: 1493 | W135: 2534 | X135: 0.6924857449 | Y135: 0.1969175182 | Z135: 0.1105967369 | AA135: 69222.61484
A136: 2020-03-19T17:00:00 | B136: 3 | C136: Lombardia | D136: 7387 | E136: 1006 | F136: 8393 | G136: 5545 | H136: 13938 | I136: 1672 | J136: 1672 | K136: 3778 | L136: 2168 | M136: 19884 | N136: 52244 | O136: 11685 | P136: 11685 | S136: 1501 | T136: 290 | U136: 209 | V136: 2171 | W136: 3261 | X136: 0.7009656005 | Y136: 0.1900020117 | Z136: 0.1090323878 | AA136: 76607.77385
A137: 2020-03-20T17:00:00 | B137: 3 | C137: Lombardia | D137: 7735 | E137: 1050 | F137: 8785 | G137: 6635 | H137: 15420 | I137: 1482 | J137: 1482 | K137: 4295 | L137: 2549 | M137: 22264 | N137: 57174 | O137: 11685 | P137: 11685 | S137: -190 | T137: 517 | U137: 381 | V137: 2380 | W137: =IF(N137-N136=0,"",N137-N136) -> 4930 | X137: 0.6925979159 | Y137: 0.1929123248 | Z137: 0.1144897593 | AA137: 90070.67138
A138: 2020-03-21T17:00:00 | B138: 3 | C138: Lombardia | D138: 8258 | E138: 1093 | F138: 9351 | G138: 8019 | H138: 17370 | I138: 1950 | J138: 1950 | K138: 5050 | L138: 3095 | M138: 25515 | N138: 66730 | O138: 25515 | P138: x2 | Q138: 25515 | S138: 468 | T138: 755 | U138: 546 | V138: =IF(M138-M137=0,"",M138-M137) -> 3251 | W138: 9556 | X138: 0.6807760141 | Y138: 0.1979227905 | Z138: 0.1213011954 | AA138: 109363.9576
A139: 2020-03-22T17:00:00 | B139: 3 | C139: Lombardia | D139: 9439 | E139: 1142 | F139: 10581 | G139: 7304 | H139: 17885 | I139: 515 | J139: 515 | K139: 5865 | L139: 3456 | M139: 27206 | N139: 70598 | O139: 25515 | P139: 25515 | S139: -1435 | T139: 815 | U139: 361 | V139: 1691 | W139: 3868 | X139: 0.6573917518 | Y139: 0.2155774462 | Z139: 0.127030802 | AA139: 122120.1413
A140: 2020-03-23T17:00:00 | B140: 3 | C140: Lombardia | D140: 9266 | E140: 1183 | F140: 10449 | G140: 8461 | H140: 18910 | I140: 1025 | J140: 1025 | K140: 6075 | L140: 3776 | M140: 28761 | N140: 73242 | O140: 25515 | P140: 25515 | S140: 510 | T140: 210 | U140: 320 | V140: 1555 | W140: 2644 | X140: 0.65748757 | Y140: 0.2112235319 | Z140: 0.1312888982 | AA140: 133427.5618
A141: 2020-03-24T17:00:00 | B141: 3 | C141: Lombardia | D141: 9711 | E141: 1194 | F141: 10905 | G141: 8963 | H141: 19868 | I141: 958 | J141: 958 | K141: 6657 | L141: 4178 | M141: 30703 | N141: 76695 | O141: 25515 | P141: 25515 | S141: -67 | T141: 582 | U141: 402 | V141: 1942 | W141: 3453 | X141: 0.647102889 | Y141: 0.2168192033 | Z141: 0.1360779077 | AA141: 147632.5088
A142: 2020-03-25T17:00:00 | B142: 3 | C142: Lombardia | D142: 10026 | E142: 1236 | F142: 11262 | G142: 9329 | H142: 20591 | I142: 723 | J142: 723 | K142: 7281 | L142: 4474 | M142: 32346 | N142: 81666 | O142: 25515 | P142: 25515 | S142: -235 | T142: 624 | U142: 296 | V142: 1643 | W142: 4971 | X142: 0.6365856675 | Y142: 0.2250973845 | Z142: 0.138316948 | AA142: 158091.8728
A143: 2020-03-26T17:00:00 | B143: 3 | C143: Lombardia | D143: 10681 | E143: 1263 | F143: 11944 | G143: 10245 | H143: 22189 | I143: 1598 | J143: 1598 | K143: 7839 | L143: 4861 | M143: 34889 | N143: 87713 | O143: 25515 | P143: 25515 | S143: 875 | T143: 558 | U143: 387 | V143: 2543 | W143: =IF(N143-N142=0,"",N143-N142) -> 6047 | X143: 0.6359884204 | Y143: 0.2246839978 | Z143: 0.1393275818 | AA143: 171766.7845
A144: 2020-03-27T17:00:00 | B144: 3 | C144: Lombardia | D144: 11137 | E144: 1292 | F144: 12429 | G144: 11466 | H144: 23895 | I144: 1706 | J144: 2409 | K144: 8001 | L144: 5402 | M144: 37298 | N144: 95860 | O144: =IF(P144="x2",M144,O143) -> 25515 | P144: =IF(M144>O143*2,"x2",O143) -> 25515 | Q144: =IF(P144="x2",M144,"") ->  | S144: =IF(J144-J143=0,"",J144-J143) -> 811 | T144: =IF(K144-K143=0,"",K144-K143) -> 162 | U144: =IF(L144-L143=0,"",L144-L143) -> 541 | V144: =IF(M144-M143=0,"",M144-M143) -> 2409 | W144: 8147 | X144: 0.6406509732 | Y144: 0.2145155236 | Z144: 0.1448335031 | AA144: 190883.3922
A145: 2020-03-28T17:00:00 | B145: 3 | C145: Lombardia | D145: 11152 | E145: 1319 | F145: 12471 | G145: 12038 | H145: 24509 | I145: 614 | J145: 2117 | K145: 8962 | L145: 5944 | M145: 39415 | N145: 102503 | O145: 25515 | P145: 25515 | S145: =IF(J145-J144=0,"",J145-J144) -> -292 | T145: =IF(K145-K144=0,"",K145-K144) -> 961 | U145: =IF(L145-L144=0,"",L145-L144) -> 542 | V145: =IF(M145-M144=0,"",M145-M144) -> 2117 | W145: 6643 | X145: 0.6218191044 | Y145: 0.2273753647 | Z145: 0.1508055309 | AA145: 210035.3357
A146: 2020-03-29T17:00:00 | B146: 3 | C146: Lombardia | D146: 11613 | E146: 1328 | F146: 12941 | G146: 12451 | H146: 25392 | I146: 883 | J146: 1592 | K146: 9255 | L146: 6360 | M146: 41007 | N146: 107398 | O146: 25515 | P146: 25515 | S146: =IF(J146-J145=0,"",J146-J145) -> -525 | T146: =IF(K146-K145=0,"",K146-K145) -> 293 | U146: =IF(L146-L145=0,"",L146-L145) -> 416 | V146: =IF(M146-M145=0,"",M146-M145) -> 1592 | W146: 4895 | X146: 0.6192113542 | Y146: 0.2256931743 | Z146: 0.1550954715 | AA146: 224734.9823
A147: 2020-03-30T17:00:00 | B147: 3 | C147: Lombardia | D147: 11815 | E147: 1330 | F147: 13145 | G147: 11861 | H147: 25006 | I147: -386 | J147: 1154 | K147: 10337 | L147: 6818 | M147: 42161 | N147: 111057 | O147: 25515 | P147: 25515 | S147: =IF(J147-J146=0,"",J147-J146) -> -438 | T147: =IF(K147-K146=0,"",K147-K146) -> 1082 | U147: =IF(L147-L146=0,"",L147-L146) -> 458 | V147: =IF(M147-M146=0,"",M147-M146) -> 1154 | W147: 3659 | X147: 0.5931073741 | Y147: 0.245179194 | Z147: 0.1617134318 | AA147: 240918.7279
A148: 2020-03-31T17:00:00 | B148: 3 | C148: Lombardia | D148: 11883 | E148: 1324 | F148: 13207 | G148: 11917 | H148: 25124 | I148: 118 | J148: 1047 | K148: 10885 | L148: 7199 | M148: 43208 | N148: 114640 | O148: 25515 | P148: 25515 | S148: =IF(J148-J147=0,"",J148-J147) -> -107 | T148: =IF(K148-K147=0,"",K148-K147) -> 548 | U148: =IF(L148-L147=0,"",L148-L147) -> 381 | V148: =IF(M148-M147=0,"",M148-M147) -> 1047 | W148: 3583 | X148: 0.5814663951 | Y148: 0.2519209406 | Z148: 0.1666126643 | AA148: 254381.6254
A149: 2020-04-01T17:00:00 | B149: 3 | C149: Lombardia | D149: 11927 | E149: 1342 | F149: 13269 | G149: 12496 | H149: 25765 | I149: 641 | J149: 1565 | K149: 11415 | L149: 7593 | M149: 44773 | N149: 121449 | O149: 25515 | P149: 25515 | S149: =IF(J149-J148=0,"",J149-J148) -> 518 | T149: =IF(K149-K148=0,"",K149-K148) -> 530 | U149: =IF(L149-L148=0,"",L149-L148) -> 394 | V149: =IF(M149-M148=0,"",M149-M148) -> 1565 | W149: =IF(N149-N148=0,"",N149-N148) -> 6809 | X149: =IF(M149=0,0,H149/M149) -> 0.5754584236 | Y149: =IF(M149=0,0,K149/M149) -> 0.2549527617 | Z149: =IF(M149=0,0,L149/M149) -> 0.1695888147 | AA149: 268303.8869
A150: 2020-04-02T17:00:00 | B150: 3 | C150: Lombardia | D150: 11762 | E150: 1351 | F150: 13113 | G150: 12763 | H150: 25876 | I150: 111 | J150: 1292 | K150: 12229 | L150: 7960 | M150: 46065 | N150: 128286 | O150: =IF(P150="x2",M150,O149) -> 25515 | P150: =IF(M150>O149*2,"x2",O149) -> 25515 | Q150: =IF(P150="x2",M150,"") ->  | S150: =IF(J150-J149=0,"",J150-J149) -> -273 | T150: =IF(K150-K149=0,"",K150-K149) -> 814 | U150: =IF(L150-L149=0,"",L150-L149) -> 367 | V150: =IF(M150-M149=0,"",M150-M149) -> 1292 | W150: 6837 | X150: 0.5617279931 | Y150: 0.2654727016 | Z150: 0.1727993053 | AA150: 281272.0848
A151: 2020-04-03T17:00:00 | B151: 3 | C151: Lombardia | D151: 11802 | E151: 1381 | F151: 13183 | G151: 13006 | H151: 26189 | I151: 313 | J151: 1455 | K151: 13020 | L151: 8311 | M151: 47520 | N151: 135051 | O151: =IF(P151="x2",M151,O150) -> 25515 | P151: =IF(M151>O150*2,"x2",O150) -> 25515 | Q151: =IF(P151="x2",M151,"") ->  | S151: =IF(J151-J150=0,"",J151-J150) -> 163 | T151: =IF(K151-K150=0,"",K151-K150) -> 791 | U151: =IF(L151-L150=0,"",L151-L150) -> 351 | V151: =IF(M151-M150=0,"",M151-M150) -> 1455 | W151: 6765 | X151: 0.5511153199 | Y151: 0.273989899 | Z151: 0.1748947811 | AA151: =L151*100/B$1180 -> 293674.9117
A152: 2020-04-04T17:00:00 | B152: 3 | C152: Lombardia | D152: 12002 | E152: 1326 | F152: 13328 | G152: 13892 | H152: 27220 | I152: 1031 | J152: 1598 | K152: 13242 | L152: 8656 | M152: 49118 | N152: 141877 | O152: =IF(P152="x2",M152,O151) -> 25515 | P152: =IF(M152>O151*2,"x2",O151) -> 25515 | Q152: =IF(P152="x2",M152,"") ->  | S152: =IF(J152-J151=0,"",J152-J151) -> 143 | T152: =IF(K152-K151=0,"",K152-K151) -> 222 | U152: =IF(L152-L151=0,"",L152-L151) -> 345 | V152: =IF(M152-M151=0,"",M152-M151) -> 1598 | W152: 6826 | X152: 0.5541756586 | Y152: 0.2695956676 | Z152: 0.1762286738 | AA152: =L152*100/B$1180 -> 305865.7244
A153: 2020-04-05T17:00:00 | B153: 3 | C153: Lombardia | D153: 12009 | E153: 1317 | F153: 13326 | G153: 14798 | H153: 28124 | I153: 904 | J153: 1337 | K153: 13426 | L153: 8905 | M153: 50455 | N153: 149984 | O153: =IF(P153="x2",M153,O152) -> 25515 | P153: =IF(M153>O152*2,"x2",O152) -> 25515 | Q153: =IF(P153="x2",M153,"") ->  | S153: =IF(J153-J152=0,"",J153-J152) -> -261 | T153: =IF(K153-K152=0,"",K153-K152) -> 184 | U153: =IF(L153-L152=0,"",L153-L152) -> 249 | V153: =IF(M153-M152=0,"",M153-M152) -> 1337 | W153: 8107 | X153: 0.5574075909 | Y153: 0.2660985036 | Z153: 0.1764939055 | AA153: =L153*100/B$1180 -> 314664.311
A154: 2020-04-06T17:00:00 | B154: 3 | C154: Lombardia | D154: 11914 | E154: 1343 | F154: 13257 | G154: 15212 | H154: 28469 | I154: 345 | J154: 1079 | K154: 13863 | L154: 9202 | M154: 51534 | N154: 154989 | O154: =IF(P154="x2",M154,O153) -> 51534 | P154: =IF(M154>O153*2,"x2",O153) -> x2 | Q154: =IF(P154="x2",M154,"") -> 51534 | S154: =IF(J154-J153=0,"",J154-J153) -> -258 | T154: =IF(K154-K153=0,"",K154-K153) -> 437 | U154: =IF(L154-L153=0,"",L154-L153) -> 297 | V154: =IF(M154-M153=0,"",M154-M153) -> 1079 | W154: 5005 | X154: 0.5524314045 | Y154: 0.2690068693 | Z154: 0.1785617262 | AA154: =L154*100/B$1180 -> 325159.0106
A155: 2020-04-07T17:00:00 | B155: 3 | C155: Lombardia | D155: 11833 | E155: 1305 | F155: 13138 | G155: 15205 | H155: 28343 | I155: -126 | J155: 791 | K155: 14498 | L155: 9484 | M155: 52325 | N155: 159331 | O155: =IF(P155="x2",M155,O154) -> 51534 | P155: =IF(M155>O154*2,"x2",O154) -> 51534 | Q155: =IF(P155="x2",M155,"") ->  | S155: =IF(J155-J154=0,"",J155-J154) -> -288 | T155: =IF(K155-K154=0,"",K155-K154) -> 635 | U155: =IF(L155-L154=0,"",L155-L154) -> 282 | V155: =IF(M155-M154=0,"",M155-M154) -> 791 | W155: =IF(N155-N154=0,"",N155-N154) -> 4342 | X155: =IF(M155=0,0,H155/M155) -> 0.5416722408 | Y155: =IF(M155=0,0,K155/M155) -> 0.2770759675 | Z155: =IF(M155=0,0,L155/M155) -> 0.1812517917 | AA155: =L155*100/B$1180 -> 335123.6749
A156: 2020-04-08T17:00:00 | B156: 3 | C156: Lombardia | D156: 11719 | E156: 1257 | F156: 12976 | G156: 15569 | H156: 28545 | I156: 202 | J156: 1089 | K156: 15147 | L156: 9722 | M156: 53414 | N156: 167557 | O156: =IF(P156="x2",M156,O155) -> 51534 | P156: =IF(M156>O155*2,"x2",O155) -> 51534 | Q156: =IF(P156="x2",M156,"") ->  | S156: =IF(J156-J155=0,"",J156-J155) -> 298 | T156: =IF(K156-K155=0,"",K156-K155) -> 649 | U156: =IF(L156-L155=0,"",L156-L155) -> 238 | V156: =IF(M156-M155=0,"",M156-M155) -> 1089 | W156: =IF(N156-N155=0,"",N156-N155) -> 8226 | X156: =IF(M156=0,0,H156/M156) -> 0.5344104542 | Y156: =IF(M156=0,0,K156/M156) -> 0.2835773393 | Z156: =IF(M156=0,0,L156/M156) -> 0.1820122065 | AA156: =L156*100/B$1180 -> 343533.5689
A157: 2020-04-09T17:00:00 | B157: 3 | C157: Lombardia | D157: 11796 | E157: 1236 | F157: 13032 | G157: 16042 | H157: 29074 | I157: 529 | J157: 1388 | K157: 15706 | L157: 10022 | M157: 54802 | N157: 176953 | O157: =IF(P157="x2",M157,O156) -> 51534 | P157: =IF(M157>O156*2,"x2",O156) -> 51534 | Q157: =IF(P157="x2",M157,"") ->  | S157: =IF(J157-J156=0,"",J157-J156) -> 299 | T157: =IF(K157-K156=0,"",K157-K156) -> 559 | U157: =IF(L157-L156=0,"",L157-L156) -> 300 | V157: =IF(M157-M156=0,"",M157-M156) -> 1388 | W157: =IF(N157-N156=0,"",N157-N156) -> 9396 | X157: =IF(M157=0,0,H157/M157) -> 0.5305280829 | Y157: =IF(M157=0,0,K157/M157) -> 0.2865953797 | Z157: =IF(M157=0,0,L157/M157) -> 0.1828765374 | AA157: =L157*100/B$1180 -> 354134.2756
A158: 2020-04-10T17:00:00 | B158: 3 | C158: Lombardia | D158: 11877 | E158: 1202 | F158: 13079 | G158: 16451 | H158: 29530 | I158: 456 | J158: 1246 | K158: 16280 | L158: 10238 | M158: 56048 | N158: 186325 | O158: =IF(P158="x2",M158,O157) -> 51534 | P158: =IF(M158>O157*2,"x2",O157) -> 51534 | Q158: =IF(P158="x2",M158,"") ->  | S158: =IF(J158-J157=0,"",J158-J157) -> -142 | T158: =IF(K158-K157=0,"",K158-K157) -> 574 | U158: =IF(L158-L157=0,"",L158-L157) -> 216 | V158: =IF(M158-M157=0,"",M158-M157) -> 1246 | W158: =IF(N158-N157=0,"",N158-N157) -> 9372 | X158: =IF(M158=0,0,H158/M158) -> 0.5268698259 | Y158: =IF(M158=0,0,K158/M158) -> 0.2904653154 | Z158: =IF(M158=0,0,L158/M158) -> 0.1826648587 | AA158: =L158*100/B$1180 -> 361766.7845
A159: =A158 + 1 -> 2020-04-11T17:00:00 | P159: Media x2 | Q159: =COUNT(M112:M158) / COUNT(Q112:Q158) -> 5.875
A160: =A159+1 -> 2020-04-12T17:00:00
A161: =A160+1 -> 2020-04-13T17:00:00
E162: =E158/$M158 -> 0.02144590351 | H162: =H158/$M158 -> 0.5268698259 | K162: =K158/$M158 -> 0.2904653154 | L162: =L158/$M158 -> 0.1826648587 | N162: =N158/$M158 -> 3.324382672
A166: Data | B166: Codice | C166: Regione | D166: Ricoverati | E166: Terap. Intens. | F166: Ospedalizzati | G166: Quarantena | H166: Positivi | I166: + Positivi | J166: Nuovi | K166: Guariti | L166: Deceduti | M166: Totale | N166: Tamponi | Q166: x 2 | S166: + Nuovi | T166: + Guariti | U166: + Deceduti | V166: + Totali | W166: + Tamponi | X166: % Positivi | Y166: % Guariti | Z166: % Deceduti | AA166: P. Stimati
A167: 2020-02-24T18:00:00 | B167: 4 | C167: P.A. Bolzano | D167: 0 | E167: 0 | F167: 0 | G167: 0 | H167: 0 | I167: 0 | J167: 0 | K167: 0 | L167: 0 | M167: 0 | N167: 1 | O167: =M167 -> 0 | Q167: =M167 -> 0 | X167: =IF(M167=0,0,H167/M167) -> 0 | Y167: =IF(M167=0,0,K167/M167) -> 0 | Z167: =IF(M167=0,0,L167/M167) -> 0 | AA167: =L167*100/B$1180 -> 0
A168: 2020-02-25T18:00:00 | B168: 4 | C168: P.A. Bolzano | D168: 1 | E168: 0 | F168: 1 | G168: 0 | H168: 1 | I168: 1 | J168: 1 | K168: 0 | L168: 0 | M168: 1 | N168: 1 | O168: =IF(P168="x2",M168,O167) -> 1 | P168: =IF(M168>O167*2,"x2",O167) -> x2 | Q168: =IF(P168="x2",M168,"") -> 1 | S168: =IF(J168-J167=0,"",J168-J167) -> 1 | T168: =IF(K168-K167=0,"",K168-K167) ->  | U168: =IF(L168-L167=0,"",L168-L167) ->  | V168: =IF(M168-M167=0,"",M168-M167) -> 1 | W168: =IF(N168-N167=0,"",N168-N167) ->  | X168: 1 | Y168: 0 | Z168: 0 | AA168: 0
A169: 2020-02-26T18:00:00 | B169: 4 | C169: P.A. Bolzano | D169: 1 | E169: 0 | F169: 1 | G169: 0 | H169: 1 | I169: 0 | J169: 0 | K169: 0 | L169: 0 | M169: 1 | N169: 1 | O169: 1 | P169: 1 | S169: -1 | X169: 1 | Y169: 0 | Z169: 0 | AA169: 0
A170: 2020-02-27T18:00:00 | B170: 4 | C170: P.A. Bolzano | D170: 1 | E170: 0 | F170: 1 | G170: 0 | H170: 1 | I170: 0 | J170: 0 | K170: 0 | L170: 0 | M170: 1 | N170: 2 | O170: 1 | P170: 1 | W170: 1 | X170: 1 | Y170: 0 | Z170: 0 | AA170: 0
A171: 2020-02-28T18:00:00 | B171: 4 | C171: P.A. Bolzano | D171: 1 | E171: 0 | F171: 1 | G171: 0 | H171: 1 | I171: 0 | J171: 0 | K171: 0 | L171: 0 | M171: 1 | N171: 2 | O171: 1 | P171: 1 | X171: 1 | Y171: 0 | Z171: 0 | AA171: 0
A172: 2020-02-29T17:00:00 | B172: 4 | C172: P.A. Bolzano | D172: 1 | E172: 0 | F172: 1 | G172: 0 | H172: 1 | I172: 0 | J172: 0 | K172: 0 | L172: 0 | M172: 1 | N172: 16 | O172: 1 | P172: 1 | W172: 14 | X172: 1 | Y172: 0 | Z172: 0 | AA172: 0
A173: 2020-03-01T17:00:00 | B173: 4 | C173: P.A. Bolzano | D173: 1 | E173: 0 | F173: 1 | G173: 0 | H173: 1 | I173: 0 | J173: 0 | K173: 0 | L173: 0 | M173: 1 | N173: 20 | O173: 1 | P173: 1 | W173: 4 | X173: 1 | Y173: 0 | Z173: 0 | AA173: 0
A174: 2020-03-02T18:00:00 | B174: 4 | C174: P.A. Bolzano | D174: 1 | E174: 0 | F174: 1 | G174: 0 | H174: 1 | I174: 0 | J174: 0 | K174: 0 | L174: 0 | M174: 1 | N174: 20 | O174: 1 | P174: 1 | X174: 1 | Y174: 0 | Z174: 0 | AA174: 0
A175: 2020-03-03T18:00:00 | B175: 4 | C175: P.A. Bolzano | D175: 1 | E175: 0 | F175: 1 | G175: 0 | H175: 1 | I175: 0 | J175: 0 | K175: 0 | L175: 0 | M175: 1 | N175: 20 | O175: 1 | P175: 1 | X175: 1 | Y175: 0 | Z175: 0 | AA175: 0
A176: 2020-03-04T17:00:00 | B176: 4 | C176: P.A. Bolzano | D176: 1 | E176: 0 | F176: 1 | G176: 0 | H176: 1 | I176: 0 | J176: 0 | K176: 0 | L176: 0 | M176: 1 | N176: 20 | O176: 1 | P176: 1 | X176: 1 | Y176: 0 | Z176: 0 | AA176: 0
A177: 2020-03-05T17:00:00 | B177: 4 | C177: P.A. Bolzano | D177: 1 | E177: 0 | F177: 1 | G177: 0 | H177: 1 | I177: 0 | J177: 0 | K177: 0 | L177: 0 | M177: 1 | N177: 20 | O177: 1 | P177: 1 | X177: 1 | Y177: 0 | Z177: 0 | AA177: 0
A178: 2020-03-06T17:00:00 | B178: 4 | C178: P.A. Bolzano | D178: 4 | E178: 0 | F178: 4 | G178: 0 | H178: 4 | I178: 3 | J178: 3 | K178: 0 | L178: 0 | M178: 4 | N178: 36 | O178: 4 | P178: x2 | Q178: 4 | S178: 3 | V178: 3 | W178: 16 | X178: 1 | Y178: 0 | Z178: 0 | AA178: 0
A179: 2020-03-07T18:00:00 | B179: 4 | C179: P.A. Bolzano | D179: 8 | E179: 0 | F179: 8 | G179: 1 | H179: 9 | I179: 5 | J179: 5 | K179: 0 | L179: 0 | M179: 9 | N179: 36 | O179: 9 | P179: x2 | Q179: 9 | S179: 2 | V179: 5 | X179: 1 | Y179: 0 | Z179: 0 | AA179: 0
A180: 2020-03-08T18:00:00 | B180: 4 | C180: P.A. Bolzano | D180: 8 | E180: 0 | F180: 8 | G180: 1 | H180: 9 | I180: 0 | J180: 0 | K180: 0 | L180: 0 | M180: 9 | N180: 36 | O180: 9 | P180: 9 | S180: -5 | X180: 1 | Y180: 0 | Z180: 0 | AA180: 0
A181: 2020-03-09T18:00:00 | B181: 4 | C181: P.A. Bolzano | D181: 8 | E181: 0 | F181: 8 | G181: 1 | H181: 9 | I181: 0 | J181: 0 | K181: 0 | L181: 0 | M181: 9 | N181: 36 | O181: 9 | P181: 9 | X181: 1 | Y181: 0 | Z181: 0 | AA181: 0
A182: 2020-03-10T18:00:00 | B182: 4 | C182: P.A. Bolzano | D182: 17 | E182: 1 | F182: 18 | G182: 20 | H182: 38 | I182: 29 | J182: 29 | K182: 0 | L182: 0 | M182: 38 | N182: 36 | O182: 38 | P182: x2 | Q182: 38 | S182: 29 | V182: 29 | X182: 1 | Y182: 0 | Z182: 0 | AA182: 0
A183: 2020-03-11T17:00:00 | B183: 4 | C183: P.A. Bolzano | D183: 8 | E183: 4 | F183: 12 | G183: 63 | H183: 75 | I183: 37 | J183: 37 | K183: 0 | L183: 0 | M183: 75 | N183: 75 | O183: 38 | P183: 38 | S183: 8 | V183: 37 | W183: 39 | X183: 1 | Y183: 0 | Z183: 0 | AA183: 0
A184: 2020-03-12T17:00:00 | B184: 4 | C184: P.A. Bolzano | D184: 21 | E184: 4 | F184: 25 | G184: 78 | H184: 103 | I184: 28 | J184: 28 | K184: 0 | L184: 1 | M184: 104 | N184: 607 | O184: 104 | P184: x2 | Q184: 104 | S184: -9 | U184: 1 | V184: 29 | W184: 532 | X184: 0.9903846154 | Y184: 0 | Z184: 0.009615384615 | AA184: 35.33568905
A185: 2020-03-13T17:00:00 | B185: 4 | C185: P.A. Bolzano | D185: 20 | E185: 5 | F185: 25 | G185: 98 | H185: 123 | I185: 20 | J185: 20 | K185: 0 | L185: 2 | M185: 125 | N185: 811 | O185: 104 | P185: 104 | S185: -8 | U185: 1 | V185: 21 | W185: 204 | X185: 0.984 | Y185: 0 | Z185: 0.016 | AA185: 70.67137809
A186: 2020-03-14T17:00:00 | B186: 4 | C186: P.A. Bolzano | D186: 26 | E186: 7 | F186: 33 | G186: 137 | H186: 170 | I186: 47 | J186: 47 | K186: 0 | L186: 3 | M186: 173 | N186: 1135 | O186: 104 | P186: 104 | S186: 27 | U186: 1 | V186: 48 | W186: 324 | X186: 0.9826589595 | Y186: 0 | Z186: 0.01734104046 | AA186: 106.0070671
A187: 2020-03-15T17:00:00 | B187: 4 | C187: P.A. Bolzano | D187: 50 | E187: 4 | F187: 54 | G187: 145 | H187: 199 | I187: 29 | J187: 29 | K187: 0 | L187: 5 | M187: 204 | N187: 1497 | O187: 104 | P187: 104 | S187: -18 | U187: 2 | V187: 31 | W187: 362 | X187: 0.9754901961 | Y187: 0 | Z187: 0.02450980392 | AA187: 176.6784452
A188: 2020-03-16T17:00:00 | B188: 4 | C188: P.A. Bolzano | D188: 53 | E188: 11 | F188: 64 | G188: 171 | H188: 235 | I188: 36 | J188: 36 | K188: 0 | L188: 6 | M188: 241 | N188: 1740 | O188: 241 | P188: x2 | Q188: 241 | S188: 7 | U188: 1 | V188: 37 | W188: 243 | X188: 0.9751037344 | Y188: 0 | Z188: 0.02489626556 | AA188: 212.0141343
A189: 2020-03-17T17:00:00 | B189: 4 | C189: P.A. Bolzano | D189: 71 | E189: 11 | F189: 82 | G189: 200 | H189: 282 | I189: 47 | J189: 47 | K189: 1 | L189: 8 | M189: 291 | N189: 2149 | O189: 241 | P189: 241 | S189: 11 | T189: 1 | U189: 2 | V189: 50 | W189: 409 | X189: 0.9690721649 | Y189: 0.003436426117 | Z189: 0.02749140893 | AA189: 282.6855124
A190: 2020-03-18T17:00:00 | B190: 4 | C190: P.A. Bolzano | D190: 79 | E190: 18 | F190: 97 | G190: 269 | H190: 366 | I190: 84 | J190: 84 | K190: 1 | L190: 9 | M190: 376 | N190: 2844 | O190: 241 | P190: 241 | S190: 37 | U190: 1 | V190: 85 | W190: 695 | X190: 0.9734042553 | Y190: 0.002659574468 | Z190: 0.02393617021 | AA190: 318.0212014
A191: 2020-03-19T17:00:00 | B191: 4 | C191: P.A. Bolzano | D191: 87 | E191: 18 | F191: 105 | G191: 316 | H191: 421 | I191: 55 | J191: 55 | K191: 1 | L191: 14 | M191: 436 | N191: 3568 | O191: 241 | P191: 241 | S191: -29 | U191: 5 | V191: 60 | W191: 724 | X191: 0.9655963303 | Y191: 0.002293577982 | Z191: 0.03211009174 | AA191: 494.6996466
A192: 2020-03-20T17:00:00 | B192: 4 | C192: P.A. Bolzano | D192: 99 | E192: 24 | F192: 123 | G192: 407 | H192: 530 | I192: 109 | J192: 109 | K192: 1 | L192: 17 | M192: 548 | N192: 4433 | O192: 548 | P192: x2 | Q192: 548 | S192: 54 | U192: 3 | V192: 112 | W192: =IF(N192-N191=0,"",N192-N191) -> 865 | X192: 0.9671532847 | Y192: 0.001824817518 | Z192: 0.03102189781 | AA192: 600.7067138
A193: 2020-03-21T17:00:00 | B193: 4 | C193: P.A. Bolzano | D193: 127 | E193: 30 | F193: 157 | G193: 443 | H193: 600 | I193: 70 | J193: 70 | K193: 1 | L193: 20 | M193: 621 | N193: 5179 | O193: 548 | P193: 548 | S193: -39 | U193: 3 | V193: =IF(M193-M192=0,"",M193-M192) -> 73 | W193: 746 | X193: 0.9661835749 | Y193: 0.001610305958 | Z193: 0.03220611916 | AA193: 706.7137809
A194: 2020-03-22T17:00:00 | B194: 4 | C194: P.A. Bolzano | D194: 146 | E194: 32 | F194: 178 | G194: 470 | H194: 648 | I194: 48 | J194: 48 | K194: 7 | L194: 23 | M194: 678 | N194: 5718 | O194: 548 | P194: 548 | S194: -22 | T194: 6 | U194: 3 | V194: 57 | W194: 539 | X194: 0.9557522124 | Y194: 0.01032448378 | Z194: 0.03392330383 | AA194: 812.7208481
A195: 2020-03-23T17:00:00 | B195: 4 | C195: P.A. Bolzano | D195: 145 | E195: 33 | F195: 178 | G195: 510 | H195: 688 | I195: 40 | J195: 40 | K195: 7 | L195: 29 | M195: 724 | N195: 6084 | O195: 548 | P195: 548 | S195: -8 | U195: 6 | V195: 46 | W195: 366 | X195: 0.9502762431 | Y195: 0.009668508287 | Z195: 0.04005524862 | AA195: 1024.734982
A196: 2020-03-24T17:00:00 | B196: 4 | C196: P.A. Bolzano | D196: 166 | E196: 38 | F196: 204 | G196: 495 | H196: 699 | I196: 11 | J196: 11 | K196: 44 | L196: 38 | M196: 781 | N196: 6509 | O196: 548 | P196: 548 | S196: -29 | T196: 37 | U196: 9 | V196: 57 | W196: 425 | X196: 0.895006402 | Y196: 0.05633802817 | Z196: 0.04865556978 | AA196: 1342.756184
A197: 2020-03-25T17:00:00 | B197: 4 | C197: P.A. Bolzano | D197: 190 | E197: 40 | F197: 230 | G197: 518 | H197: 748 | I197: 49 | J197: 49 | K197: 67 | L197: 43 | M197: 858 | N197: 6649 | O197: 548 | P197: 548 | S197: 38 | T197: 23 | U197: 5 | V197: 77 | W197: 140 | X197: 0.8717948718 | Y197: 0.07808857809 | Z197: 0.05011655012 | AA197: 1519.434629
A198: 2020-03-26T17:00:00 | B198: 4 | C198: P.A. Bolzano | D198: 223 | E198: 43 | F198: 266 | G198: 525 | H198: 791 | I198: 43 | J198: 43 | K198: 67 | L198: 48 | M198: 906 | N198: 7744 | O198: 548 | P198: 548 | S198: -6 | U198: 5 | V198: 48 | W198: =IF(N198-N197=0,"",N198-N197) -> 1095 | X198: 0.8730684327 | Y198: 0.07395143488 | Z198: 0.05298013245 | AA198: 1696.113074
A199: 2020-03-27T17:00:00 | B199: 4 | C199: P.A. Bolzano | D199: 249 | E199: 45 | F199: 294 | G199: 539 | H199: 833 | I199: 42 | J199: 97 | K199: 110 | L199: 60 | M199: 1003 | N199: 8520 | O199: =IF(P199="x2",M199,O198) -> 548 | P199: =IF(M199>O198*2,"x2",O198) -> 548 | Q199: =IF(P199="x2",M199,"") ->  | S199: =IF(J199-J198=0,"",J199-J198) -> 54 | T199: =IF(K199-K198=0,"",K199-K198) -> 43 | U199: =IF(L199-L198=0,"",L199-L198) -> 12 | V199: =IF(M199-M198=0,"",M199-M198) -> 97 | W199: 776 | X199: 0.8305084746 | Y199: 0.109670987 | Z199: 0.05982053838 | AA199: 2120.141343
A200: 2020-03-28T17:00:00 | B200: 4 | C200: P.A. Bolzano | D200: 225 | E200: 51 | F200: 276 | G200: 653 | H200: 929 | I200: 96 | J200: 106 | K200: 116 | L200: 64 | M200: 1109 | N200: 9168 | O200: 1109 | P200: x2 | Q200: 1109 | S200: =IF(J200-J199=0,"",J200-J199) -> 9 | T200: =IF(K200-K199=0,"",K200-K199) -> 6 | U200: =IF(L200-L199=0,"",L200-L199) -> 4 | V200: =IF(M200-M199=0,"",M200-M199) -> 106 | W200: 648 | X200: 0.8376916141 | Y200: 0.1045987376 | Z200: 0.05770964833 | AA200: 2261.484099
A201: 2020-03-29T17:00:00 | B201: 4 | C201: P.A. Bolzano | D201: 234 | E201: 56 | F201: 290 | G201: 744 | H201: 1034 | I201: 105 | J201: 105 | K201: 116 | L201: 64 | M201: 1214 | N201: 10137 | O201: 1109 | P201: 1109 | S201: =IF(J201-J200=0,"",J201-J200) -> -1 | T201: =IF(K201-K200=0,"",K201-K200) ->  | U201: =IF(L201-L200=0,"",L201-L200) ->  | V201: =IF(M201-M200=0,"",M201-M200) -> 105 | W201: 969 | X201: 0.8517298188 | Y201: 0.09555189456 | Z201: 0.05271828666 | AA201: 2261.484099
A202: 2020-03-30T17:00:00 | B202: 4 | C202: P.A. Bolzano | D202: 231 | E202: 62 | F202: 293 | G202: 805 | H202: 1098 | I202: 64 | J202: 111 | K202: 153 | L202: 74 | M202: 1325 | N202: 10640 | O202: 1109 | P202: 1109 | S202: =IF(J202-J201=0,"",J202-J201) -> 6 | T202: =IF(K202-K201=0,"",K202-K201) -> 37 | U202: =IF(L202-L201=0,"",L202-L201) -> 10 | V202: =IF(M202-M201=0,"",M202-M201) -> 111 | W202: 503 | X202: 0.8286792453 | Y202: 0.1154716981 | Z202: 0.0558490566 | AA202: 2614.840989
A203: 2020-03-31T17:00:00 | B203: 4 | C203: P.A. Bolzano | D203: 249 | E203: 62 | F203: 311 | G203: 831 | H203: 1142 | I203: 44 | J203: 46 | K203: 153 | L203: 76 | M203: 1371 | N203: 11275 | O203: 1109 | P203: 1109 | S203: =IF(J203-J202=0,"",J203-J202) -> -65 | T203: =IF(K203-K202=0,"",K203-K202) ->  | U203: =IF(L203-L202=0,"",L203-L202) -> 2 | V203: =IF(M203-M202=0,"",M203-M202) -> 46 | W203: 635 | X203: 0.832968636 | Y203: 0.1115973742 | Z203: 0.05543398979 | AA203: 2685.512367
A204: 2020-04-01T17:00:00 | B204: 4 | C204: P.A. Bolzano | D204: 269 | E204: 57 | F204: 326 | G204: 786 | H204: 1112 | I204: -30 | J204: 47 | K204: 190 | L204: 116 | M204: 1418 | N204: 11951 | O204: 1109 | P204: 1109 | S204: =IF(J204-J203=0,"",J204-J203) -> 1 | T204: =IF(K204-K203=0,"",K204-K203) -> 37 | U204: =IF(L204-L203=0,"",L204-L203) -> 40 | V204: =IF(M204-M203=0,"",M204-M203) -> 47 | W204: =IF(N204-N203=0,"",N204-N203) -> 676 | X204: =IF(M204=0,0,H204/M204) -> 0.784203103 | Y204: =IF(M204=0,0,K204/M204) -> 0.1339915374 | Z204: =IF(M204=0,0,L204/M204) -> 0.08180535966 | AA204: 4098.939929
A205: 2020-04-02T17:00:00 | B205: 4 | C205: P.A. Bolzano | D205: 279 | E205: 60 | F205: 339 | G205: 821 | H205: 1160 | I205: 48 | J205: 61 | K205: 190 | L205: 129 | M205: 1479 | N205: 12677 | O205: =IF(P205="x2",M205,O204) -> 1109 | P205: =IF(M205>O204*2,"x2",O204) -> 1109 | Q205: =IF(P205="x2",M205,"") ->  | S205: =IF(J205-J204=0,"",J205-J204) -> 14 | T205: =IF(K205-K204=0,"",K205-K204) ->  | U205: =IF(L205-L204=0,"",L205-L204) -> 13 | V205: =IF(M205-M204=0,"",M205-M204) -> 61 | W205: 726 | X205: 0.7843137255 | Y205: 0.1284651792 | Z205: 0.08722109533 | AA205: 4558.303887
A206: 2020-04-03T17:00:00 | B206: 4 | C206: P.A. Bolzano | D206: 291 | E206: 60 | F206: 351 | G206: 858 | H206: 1209 | I206: 49 | J206: 80 | K206: 211 | L206: 139 | M206: 1559 | N206: 13976 | O206: =IF(P206="x2",M206,O205) -> 1109 | P206: =IF(M206>O205*2,"x2",O205) -> 1109 | Q206: =IF(P206="x2",M206,"") ->  | S206: =IF(J206-J205=0,"",J206-J205) -> 19 | T206: =IF(K206-K205=0,"",K206-K205) -> 21 | U206: =IF(L206-L205=0,"",L206-L205) -> 10 | V206: =IF(M206-M205=0,"",M206-M205) -> 80 | W206: 1299 | X206: 0.7754971135 | Y206: 0.1353431687 | Z206: 0.08915971777 | AA206: =L206*100/B$1180 -> 4911.660777
A207: 2020-04-04T17:00:00 | B207: 4 | C207: P.A. Bolzano | D207: 291 | E207: 61 | F207: 352 | G207: 849 | H207: 1201 | I207: -8 | J207: 33 | K207: 245 | L207: 146 | M207: 1592 | N207: 15045 | O207: =IF(P207="x2",M207,O206) -> 1109 | P207: =IF(M207>O206*2,"x2",O206) -> 1109 | Q207: =IF(P207="x2",M207,"") ->  | S207: =IF(J207-J206=0,"",J207-J206) -> -47 | T207: =IF(K207-K206=0,"",K207-K206) -> 34 | U207: =IF(L207-L206=0,"",L207-L206) -> 7 | V207: =IF(M207-M206=0,"",M207-M206) -> 33 | W207: 1069 | X207: 0.7543969849 | Y207: 0.1538944724 | Z207: 0.09170854271 | AA207: =L207*100/B$1180 -> 5159.010601
A208: 2020-04-05T17:00:00 | B208: 4 | C208: P.A. Bolzano | D208: 239 | E208: 53 | F208: 292 | G208: 934 | H208: 1226 | I208: 25 | J208: 52 | K208: 260 | L208: 158 | M208: 1644 | N208: 15723 | O208: =IF(P208="x2",M208,O207) -> 1109 | P208: =IF(M208>O207*2,"x2",O207) -> 1109 | Q208: =IF(P208="x2",M208,"") ->  | S208: =IF(J208-J207=0,"",J208-J207) -> 19 | T208: =IF(K208-K207=0,"",K208-K207) -> 15 | U208: =IF(L208-L207=0,"",L208-L207) -> 12 | V208: =IF(M208-M207=0,"",M208-M207) -> 52 | W208: 678 | X208: 0.7457420925 | Y208: 0.1581508516 | Z208: 0.09610705596 | AA208: =L208*100/B$1180 -> 5583.038869
A209: 2020-04-06T17:00:00 | B209: 4 | C209: P.A. Bolzano | D209: 245 | E209: 52 | F209: 297 | G209: 963 | H209: 1260 | I209: 34 | J209: 78 | K209: 298 | L209: 164 | M209: 1722 | N209: 16825 | O209: =IF(P209="x2",M209,O208) -> 1109 | P209: =IF(M209>O208*2,"x2",O208) -> 1109 | Q209: =IF(P209="x2",M209,"") ->  | S209: =IF(J209-J208=0,"",J209-J208) -> 26 | T209: =IF(K209-K208=0,"",K209-K208) -> 38 | U209: =IF(L209-L208=0,"",L209-L208) -> 6 | V209: =IF(M209-M208=0,"",M209-M208) -> 78 | W209: 1102 | X209: 0.7317073171 | Y209: 0.1730545877 | Z209: 0.09523809524 | AA209: =L209*100/B$1180 -> 5795.053004
... 969 more rows
